{"text_format":"3","workbook":"xlsx","n_sheets":4,"sheets":["Shop Briefing","個人KPI","Sales receipt((當天)","個人KPISales receipt(MTD）"],"not_rendered":{"macros":1,"defined_names":3},"read":"whole","date_system":"1900"}

{"sheet":"Shop Briefing","index":0,"n_rows":78,"n_cols":15,"rows_kept":78,"merged":[[0,0,0,2],[0,3,0,5],[0,8,0,9],[0,10,0,11],[1,0,2,0],[1,1,1,2],[1,3,2,4],[1,5,2,6],[1,7,2,8],[1,9,2,10],[1,11,2,12],[1,13,2,14],[3,3,3,4],[3,5,3,6],[3,7,3,8],[3,9,3,10],[3,11,3,12],[3,13,3,14],[4,3,4,4],[4,5,4,6],[4,7,4,8],[4,9,4,10],[4,11,4,12],[4,13,4,14],[5,3,5,4],[5,5,5,6],[5,7,5,8],[5,9,5,10],[5,11,5,12],[5,13,5,14],[7,0,15,0],[7,1,7,10],[7,11,7,12],[7,13,7,14],[8,1,8,4],[8,5,8,6],[8,7,8,8],[8,9,8,10],[8,11,8,12],[8,13,8,14],[9,1,9,4],[9,5,9,6],[9,7,9,8],[9,9,9,10],[9,11,9,12],[9,13,9,14],[10,1,10,4],[10,5,10,6],[10,7,10,8],[10,9,10,10],[10,11,10,12],[10,13,10,14],[11,1,11,4],[11,5,11,6],[11,7,11,8],[11,9,11,10],[11,11,11,12],[11,13,11,14],[12,1,12,4],[12,5,12,6],[12,7,12,8],[12,9,12,10],[12,11,12,12],[12,13,12,14],[13,1,13,4],[13,5,13,6],[13,7,13,8],[13,9,13,10],[13,11,13,12],[13,13,13,14],[14,1,14,4],[14,5,14,6],[14,7,14,8],[14,9,14,10],[14,11,14,12],[14,13,14,14],[15,1,15,4],[15,5,15,6],[15,7,15,8],[15,9,15,10],[15,11,15,12],[15,13,15,14],[17,0,26,0],[17,1,17,4],[17,5,17,6],[17,7,17,8],[17,9,17,10],[17,11,17,12],[17,13,17,14],[18,1,18,4],[18,5,18,6],[18,7,18,8],[18,9,18,10],[18,11,18,12],[18,13,18,14],[19,1,19,4],[19,5,19,6],[19,7,19,8],[19,9,19,10],[19,11,19,12],[19,13,19,14],[20,1,20,4],[20,5,20,6],[20,7,20,8],[20,9,20,10],[20,11,20,12],[20,13,20,14],[21,1,21,4],[21,5,21,6],[21,7,21,8],[21,9,21,10],[21,11,21,12],[21,13,21,14],[22,1,22,4],[22,5,22,6],[22,7,22,8],[22,9,22,10],[22,11,22,12],[22,13,22,14],[23,1,23,4],[23,5,23,6],[23,7,23,8],[23,9,23,10],[23,11,23,12],[23,13,23,14],[24,1,24,4],[24,5,24,6],[24,7,24,8],[24,9,24,10],[24,11,24,12],[24,13,24,14],[25,1,25,4],[25,5,25,6],[25,7,25,8],[25,9,25,10],[25,11,25,12],[25,13,25,14],[26,1,26,4],[26,5,26,6],[26,7,26,8],[26,9,26,10],[26,11,26,12],[26,13,26,14],[27,0,29,0],[27,1,27,4],[27,5,27,6],[27,7,27,8],[27,9,27,10],[27,11,27,12],[27,13,27,14],[28,1,28,4],[28,5,28,6],[28,7,28,8],[28,9,28,10],[28,11,28,12],[28,13,28,14],[29,1,29,4],[29,5,29,6],[29,7,29,8],[29,9,29,10],[29,11,29,12],[29,13,29,14],[30,0,30,4],[30,5,30,6],[30,7,30,8],[30,9,30,10],[30,11,30,12],[30,13,30,14],[31,0,31,4],[31,5,31,6],[31,7,31,8],[31,9,31,10],[31,11,31,12],[31,13,31,14],[32,0,32,14],[33,0,34,1],[33,2,33,14],[34,2,34,3],[34,4,34,5],[34,6,34,7],[34,8,34,9],[34,10,34,11],[34,12,34,13],[35,0,35,1],[35,2,35,3],[35,4,35,5],[35,6,35,7],[35,8,35,9],[35,10,35,11],[35,12,35,13],[36,0,36,1],[36,2,36,3],[36,4,36,5],[36,6,36,7],[36,8,36,9],[36,10,36,11],[36,12,36,13],[37,0,37,1],[37,2,37,3],[37,4,37,5],[37,6,37,7],[37,8,37,9],[37,10,37,11],[37,12,37,13],[38,0,38,1],[38,2,38,3],[38,4,38,5],[38,6,38,7],[38,8,38,9],[38,10,38,11],[38,12,38,13],[39,0,39,1],[39,2,39,3],[39,4,39,5],[39,6,39,7],[39,8,39,9],[39,10,39,11],[39,12,39,13],[40,0,40,1],[40,2,40,3],[40,4,40,5],[40,6,40,7],[40,8,40,9],[40,10,40,11],[40,12,40,13],[41,0,41,1],[41,2,41,3],[41,4,41,5],[41,6,41,7],[41,8,41,9],[41,10,41,11],[41,12,41,13],[42,0,42,1],[42,2,42,3],[42,4,42,5],[42,6,42,7],[42,8,42,9],[42,10,42,11],[42,12,42,13],[43,0,43,1],[43,2,43,3],[43,4,43,5],[43,6,43,7],[43,8,43,9],[43,10,43,11],[43,12,43,13],[44,0,45,0],[44,1,44,2],[44,3,44,4],[44,5,44,6],[44,7,44,8],[44,9,44,10],[44,11,44,12],[44,13,44,14],[61,0,62,0],[61,1,61,2],[61,3,61,4],[61,5,61,6],[61,7,61,8],[61,9,61,10],[61,11,61,12],[61,13,61,14],[76,0,76,14],[77,0,77,14],[78,0,78,14],[79,0,79,14],[80,0,80,14],[81,0,81,14],[82,0,82,14],[83,0,83,14],[84,0,84,14],[85,0,85,14],[86,0,86,14],[87,0,87,14],[88,0,88,14],[89,0,89,14],[90,0,90,14],[91,0,91,14],[92,0,92,14],[93,0,93,14],[94,0,94,14],[95,0,95,14],[96,0,96,14]]}
["RMV",null,null,{"$f":"TODAY()","v":"2025-10-10"},{"$nulls":4},"LY SEP MTD",null,2800864]
["本月","生意",null,"ATV",null,"UPT",null,"單數",null,"件数",null,"人流",null,"轉化率"]
[null,null,"VS+/-%"]
["昨天生意",71879,{"$f":"SUM(B4/B5)-1","v":{"v":-0.12326645118009394,"d":"-12%"}},{"$f":"SUM(B4/H4)","v":{"v":2478.5862068965516,"d":"2479"}},null,{"$f":"SUM(J4/H4)","v":{"v":3.103448275862069,"d":"3.1"}},null,29,null,90,null,348,null,{"$f":"SUM(H4/L4)*100%","v":{"v":0.08333333333333333,"d":"8%"}}]
["去年同期",81985]
["本月累计",694105,{"$f":"B6/K1-1","v":{"v":-0.7521818267506026,"d":"-75%"}},{"$f":"SUM(B6/H6)","v":{"v":2533.2299270072995,"d":"2533"}},null,{"$f":"SUM(J6/H6)","v":{"v":3.708029197080292,"d":"3.7"}},null,274,null,1016]
[]
["當天","Promotion"]
[null,"項目",{"$nulls":3},"單價",null,"單數",null,"銷售占比"]
[null,"6000-1200",{"$nulls":7},{"$f":"F10/B4","v":{"v":0,"d":"0%"}}]
[null,"3件85折",{"$nulls":7},{"$f":"F11/B4","v":{"v":0,"d":"0%"}}]
[null,"10000-2000",{"$nulls":7},{"$f":"F12/B4","v":{"v":0,"d":"0%"}}]
[null,"2件88折",{"$nulls":7},{"$f":"F13/B4","v":{"v":0,"d":"0%"}}]
[{"$nulls":9},{"$f":"F14/B4","v":{"v":0,"d":"0%"}}]
[{"$nulls":9},{"$f":"F15/B4","v":{"v":0,"d":"0%"}}]
[{"$nulls":9},{"$f":"F16/B4","v":{"v":0,"d":"0%"}}]
[]
["當天","系列/品類",{"$nulls":3},"銷售金額",null,"件數",null,"銷售占比"]
[null,"FILA ORIGINALE",{"$nulls":3},{"$f":"SUMIFS('Sales receipt((當天)'!K:K,'Sales receipt((當天)'!B:B,'Sales receipt((當天)'!B4,'Sales receipt((當天)'!G:G,'Sales receipt((當天)'!G6)","v":0},null,{"$f":"SUMIFS('Sales receipt((當天)'!J:J,'Sales receipt((當天)'!B:B,'Sales receipt((當天)'!B4,'Sales receipt((當天)'!G:G,'Sales receipt((當天)'!G6)","v":0},null,{"$f":"F19/F30","v":{"$error":"#DIV/0!"}}]
[null,"HERITAGE",{"$nulls":3},{"$f":"SUMIFS('Sales receipt((當天)'!K:K,'Sales receipt((當天)'!B:B,'Sales receipt((當天)'!B4,'Sales receipt((當天)'!G:G,'Sales receipt((當天)'!G9)","v":0},null,{"$f":"SUMIFS('Sales receipt((當天)'!J:J,'Sales receipt((當天)'!B:B,'Sales receipt((當天)'!B4,'Sales receipt((當天)'!G:G,'Sales receipt((當天)'!G9)","v":0},null,{"$f":"F20/F30","v":{"$error":"#DIV/0!"}}]
[null,"WHITE",{"$nulls":3},{"$f":"SUMIFS('Sales receipt((當天)'!K:K,'Sales receipt((當天)'!B:B,'Sales receipt((當天)'!B4,'Sales receipt((當天)'!G:G,'Sales receipt((當天)'!G17)","v":0},null,{"$f":"SUMIFS('Sales receipt((當天)'!J:J,'Sales receipt((當天)'!B:B,'Sales receipt((當天)'!B4,'Sales receipt((當天)'!G:G,'Sales receipt((當天)'!G17)","v":0},null,{"$f":"F21/F30","v":{"$error":"#DIV/0!"}}]
[null,"BLUE",{"$nulls":3},{"$f":"SUMIFS('Sales receipt((當天)'!K:K,'Sales receipt((當天)'!B:B,'Sales receipt((當天)'!B4,'Sales receipt((當天)'!G:G,'Sales receipt((當天)'!G3)","v":0},null,{"$f":"SUMIFS('Sales receipt((當天)'!J:J,'Sales receipt((當天)'!B:B,'Sales receipt((當天)'!B4,'Sales receipt((當天)'!G:G,'Sales receipt((當天)'!G3)","v":0},null,{"$f":"F22/F30","v":{"$error":"#DIV/0!"}}]
[null,"FITNESS",{"$nulls":3},{"$f":"SUMIFS('Sales receipt((當天)'!K:K,'Sales receipt((當天)'!B:B,'Sales receipt((當天)'!B4,'Sales receipt((當天)'!G:G,'Sales receipt((當天)'!G7)","v":0},null,{"$f":"SUMIFS('Sales receipt((當天)'!J:J,'Sales receipt((當天)'!B:B,'Sales receipt((當天)'!B4,'Sales receipt((當天)'!G:G,'Sales receipt((當天)'!G7)","v":0},null,{"$f":"F23/F30","v":{"$error":"#DIV/0!"}}]
[null,"A.P.",{"$nulls":3},{"$f":"SUMIFS('Sales receipt((當天)'!K:K,'Sales receipt((當天)'!B:B,'Sales receipt((當天)'!B4,'Sales receipt((當天)'!G:G,'Sales receipt((當天)'!G2)","v":0},null,{"$f":"SUMIFS('Sales receipt((當天)'!J:J,'Sales receipt((當天)'!B:B,'Sales receipt((當天)'!B4,'Sales receipt((當天)'!G:G,'Sales receipt((當天)'!G2)","v":0},null,{"$f":"F24/F30","v":{"$error":"#DIV/0!"}}]
[null,"GOLF",{"$nulls":3},{"$f":"SUMIFS('Sales receipt((當天)'!K:K,'Sales receipt((當天)'!B:B,'Sales receipt((當天)'!B4,'Sales receipt((當天)'!G:G,'Sales receipt((當天)'!G8)","v":0},null,{"$f":"SUMIFS('Sales receipt((當天)'!J:J,'Sales receipt((當天)'!B:B,'Sales receipt((當天)'!B4,'Sales receipt((當天)'!G:G,'Sales receipt((當天)'!G8)","v":0},null,{"$f":"F25/F30","v":{"$error":"#DIV/0!"}}]
[null,"EXPLORE",{"$nulls":3},{"$f":"SUMIFS('Sales receipt((當天)'!K:K,'Sales receipt((當天)'!B:B,'Sales receipt((當天)'!B4,'Sales receipt((當天)'!G:G,'Sales receipt((當天)'!G4)","v":0},null,{"$f":"SUMIFS('Sales receipt((當天)'!J:J,'Sales receipt((當天)'!B:B,'Sales receipt((當天)'!B4,'Sales receipt((當天)'!G:G,'Sales receipt((當天)'!G4)","v":0},null,{"$f":"F26/F30","v":{"$error":"#DIV/0!"}}]
[null,"TENNIS",{"$nulls":3},{"$f":"SUMIFS('Sales receipt((當天)'!K:K,'Sales receipt((當天)'!B:B,'Sales receipt((當天)'!B4,'Sales receipt((當天)'!G:G,'Sales receipt((當天)'!G16)","v":0},null,{"$f":"SUMIFS('Sales receipt((當天)'!J:J,'Sales receipt((當天)'!B:B,'Sales receipt((當天)'!B4,'Sales receipt((當天)'!G:G,'Sales receipt((當天)'!G16)","v":0},null,{"$f":"F27/F30","v":{"$error":"#DIV/0!"}}]
["服裝","男",{"$nulls":3},{"$f":"SUM(SUMIFS('Sales receipt((當天)'!K:K,'Sales receipt((當天)'!B:B,'Sales receipt((當天)'!B4,'Sales receipt((當天)'!H:H,{\"MALE\",\"男\"}))","v":0},null,{"$f":"SUM(SUMIFS('Sales receipt((當天)'!J:J,'Sales receipt((當天)'!B:B,'Sales receipt((當天)'!B4,'Sales receipt((當天)'!H:H,{\"MALE\",\"男\"}))","v":0},null,{"$f":"F28/F30","v":{"$error":"#DIV/0!"}}]
[null,"女",{"$nulls":3},{"$f":"SUM(SUMIFS('Sales receipt((當天)'!K:K,'Sales receipt((當天)'!B:B,'Sales receipt((當天)'!B4,'Sales receipt((當天)'!H:H,{\"FEMALE\",\"女\"}))","v":0},null,{"$f":"SUM(SUMIFS('Sales receipt((當天)'!J:J,'Sales receipt((當天)'!B:B,'Sales receipt((當天)'!B4,'Sales receipt((當天)'!H:H,{\"FEMALE\",\"女\"}))","v":0},null,{"$f":"F29/F30","v":{"$error":"#DIV/0!"}}]
[null,"Total",{"$nulls":3},{"$f":"SUM(F28:G29)","v":0},null,{"$f":"SUM(H28:I29)","v":0},null,{"$f":"F30/B4","v":{"v":0,"d":"0%"}}]
["鞋",{"$nulls":4},{"$f":"SUMIFS('Sales receipt((當天)'!K:K,'Sales receipt((當天)'!B:B,'Sales receipt((當天)'!B6)","v":0},null,{"$f":"SUMIFS('Sales receipt((當天)'!J:J,'Sales receipt((當天)'!B:B,'Sales receipt((當天)'!B6)","v":0},null,{"$f":"F31/B4","v":{"v":0,"d":"0%"}}]
["配件",{"$nulls":4},{"$f":"SUMIFS('Sales receipt((當天)'!K:K,'Sales receipt((當天)'!B:B,'Sales receipt((當天)'!B5)","v":0},null,{"$f":"SUMIFS('Sales receipt((當天)'!J:J,'Sales receipt((當天)'!B:B,'Sales receipt((當天)'!B5)","v":0},null,{"$f":"F32/B4","v":{"v":0,"d":"0%"}}]
[]
["姓名",null,"生意"]
[null,null,"當天目標",null,"實際",null,"月累計",null,"单数",null,"件数",null,"ATV",null,"UPT"]
["M0989 Susanna",{"$nulls":11},{"$f":"SUM(E36/I36)","v":{"$error":"#DIV/0!"}},null,{"$f":"SUM(K36/I36)","v":{"$error":"#DIV/0!"}}]
["M1436 Khaki",{"$nulls":11},{"$f":"SUM(E37/I37)","v":{"$error":"#DIV/0!"}},null,{"$f":"SUM(K37/I37)","v":{"$error":"#DIV/0!"}}]
["M2172 Janet",{"$nulls":11},{"$error":"#DIV/0!"},null,{"$f":"SUM(K38/I38)","v":{"$error":"#DIV/0!"}}]
["M2801 Fanny",{"$nulls":11},{"$error":"#DIV/0!"},null,{"$error":"#DIV/0!"}]
["M2798 Ryan",{"$nulls":11},{"$f":"SUM(E40/I40)","v":{"$error":"#DIV/0!"}},null,{"$error":"#DIV/0!"}]
["M2902 Carmen",{"$nulls":11},{"$error":"#DIV/0!"},null,{"$error":"#DIV/0!"}]
[{"$nulls":12},{"$error":"#DIV/0!"},null,{"$error":"#DIV/0!"}]
[]
[]
[null,"M0989 Susanna",null,"M2172 Janet",null,"M2801 Fanny",null,"M2798 Ryan",null,"M2902 Carmen",{"$nulls":3},"\tM1436 Khaki"]
[null,"Sales","Qty","Sales","Qty","Sales","Qty","Sales","Qty","Sales","Qty","Sales","Qty","Sales","Qty"]
[" ORIGINALE",{"$f":"SUMIFS('Sales receipt((當天)'!K:K,'Sales receipt((當天)'!A:A,'Sales receipt((當天)'!A2,'Sales receipt((當天)'!B:B,'Sales receipt((當天)'!B4,'Sales receipt((當天)'!G:G,'Sales receipt((當天)'!G6)","v":0},{"$f":"SUMIFS('Sales receipt((當天)'!J:J,'Sales receipt((當天)'!A:A,'Sales receipt((當天)'!A2,'Sales receipt((當天)'!B:B,'Sales receipt((當天)'!B4,'Sales receipt((當天)'!G:G,'Sales receipt((當天)'!G6)","v":0},{"$f":"SUMIFS('Sales receipt((當天)'!K:K,'Sales receipt((當天)'!A:A,'Sales receipt((當天)'!A3,'Sales receipt((當天)'!B:B,'Sales receipt((當天)'!B4,'Sales receipt((當天)'!G:G,'Sales receipt((當天)'!G6)","v":0},{"$f":"SUMIFS('Sales receipt((當天)'!J:J,'Sales receipt((當天)'!A:A,'Sales receipt((當天)'!A3,'Sales receipt((當天)'!B:B,'Sales receipt((當天)'!B4,'Sales receipt((當天)'!G:G,'Sales receipt((當天)'!G6)","v":0},{"$f":"SUMIFS('Sales receipt((當天)'!K:K,'Sales receipt((當天)'!A:A,'Sales receipt((當天)'!A7,'Sales receipt((當天)'!B:B,'Sales receipt((當天)'!B4,'Sales receipt((當天)'!G:G,'Sales receipt((當天)'!G6)","v":0},{"$f":"SUMIFS('Sales receipt((當天)'!J:J,'Sales receipt((當天)'!A:A,'Sales receipt((當天)'!A7,'Sales receipt((當天)'!B:B,'Sales receipt((當天)'!B4,'Sales receipt((當天)'!G:G,'Sales receipt((當天)'!G6)","v":0},{"$f":"SUMIFS('Sales receipt((當天)'!K:K,'Sales receipt((當天)'!A:A,'Sales receipt((當天)'!A6,'Sales receipt((當天)'!B:B,'Sales receipt((當天)'!B4,'Sales receipt((當天)'!G:G,'Sales receipt((當天)'!G6)","v":0},{"$f":"SUMIFS('Sales receipt((當天)'!J:J,'Sales receipt((當天)'!A:A,'Sales receipt((當天)'!A6,'Sales receipt((當天)'!B:B,'Sales receipt((當天)'!B4,'Sales receipt((當天)'!G:G,'Sales receipt((當天)'!G6)","v":0},{"$f":"SUMIFS('Sales receipt((當天)'!K:K,'Sales receipt((當天)'!A:A,'Sales receipt((當天)'!A8,'Sales receipt((當天)'!B:B,'Sales receipt((當天)'!B4,'Sales receipt((當天)'!G:G,'Sales receipt((當天)'!G6)","v":0},{"$f":"SUMIFS('Sales receipt((當天)'!J:J,'Sales receipt((當天)'!A:A,'Sales receipt((當天)'!A8,'Sales receipt((當天)'!B:B,'Sales receipt((當天)'!B4,'Sales receipt((當天)'!G:G,'Sales receipt((當天)'!G6)","v":0},{"$f":"SUMIFS('Sales receipt((當天)'!K:K,'Sales receipt((當天)'!A:A,'Sales receipt((當天)'!A4,'Sales receipt((當天)'!B:B,'Sales receipt((當天)'!B4,'Sales receipt((當天)'!G:G,'Sales receipt((當天)'!G6)","v":0},{"$f":"SUMIFS('Sales receipt((當天)'!J:J,'Sales receipt((當天)'!A:A,'Sales receipt((當天)'!A4,'Sales receipt((當天)'!B:B,'Sales receipt((當天)'!B4,'Sales receipt((當天)'!G:G,'Sales receipt((當天)'!G6)","v":0},{"$f":"SUMIFS('Sales receipt((當天)'!K:K,'Sales receipt((當天)'!A:A,'Sales receipt((當天)'!A5,'Sales receipt((當天)'!B:B,'Sales receipt((當天)'!B4,'Sales receipt((當天)'!G:G,'Sales receipt((當天)'!G6)","v":0},{"$f":"SUMIFS('Sales receipt((當天)'!J:J,'Sales receipt((當天)'!A:A,'Sales receipt((當天)'!A5,'Sales receipt((當天)'!B:B,'Sales receipt((當天)'!B4,'Sales receipt((當天)'!G:G,'Sales receipt((當天)'!G6)","v":0}]
["HERITAGE",{"$f":"SUMIFS('Sales receipt((當天)'!K:K,'Sales receipt((當天)'!A:A,'Sales receipt((當天)'!A2,'Sales receipt((當天)'!B:B,'Sales receipt((當天)'!B4,'Sales receipt((當天)'!G:G,'Sales receipt((當天)'!G9)","v":0},{"$f":"SUMIFS('Sales receipt((當天)'!J:J,'Sales receipt((當天)'!A:A,'Sales receipt((當天)'!A2,'Sales receipt((當天)'!B:B,'Sales receipt((當天)'!B4,'Sales receipt((當天)'!G:G,'Sales receipt((當天)'!G9)","v":0},{"$f":"SUMIFS('Sales receipt((當天)'!K:K,'Sales receipt((當天)'!A:A,'Sales receipt((當天)'!A3,'Sales receipt((當天)'!B:B,'Sales receipt((當天)'!B4,'Sales receipt((當天)'!G:G,'Sales receipt((當天)'!G9)","v":0},{"$f":"SUMIFS('Sales receipt((當天)'!J:J,'Sales receipt((當天)'!A:A,'Sales receipt((當天)'!A3,'Sales receipt((當天)'!B:B,'Sales receipt((當天)'!B4,'Sales receipt((當天)'!G:G,'Sales receipt((當天)'!G9)","v":0},{"$f":"SUMIFS('Sales receipt((當天)'!K:K,'Sales receipt((當天)'!A:A,'Sales receipt((當天)'!A7,'Sales receipt((當天)'!B:B,'Sales receipt((當天)'!B4,'Sales receipt((當天)'!G:G,'Sales receipt((當天)'!G9)","v":0},{"$f":"SUMIFS('Sales receipt((當天)'!J:J,'Sales receipt((當天)'!A:A,'Sales receipt((當天)'!A7,'Sales receipt((當天)'!B:B,'Sales receipt((當天)'!B4,'Sales receipt((當天)'!G:G,'Sales receipt((當天)'!G9)","v":0},{"$f":"SUMIFS('Sales receipt((當天)'!K:K,'Sales receipt((當天)'!A:A,'Sales receipt((當天)'!A6,'Sales receipt((當天)'!B:B,'Sales receipt((當天)'!B4,'Sales receipt((當天)'!G:G,'Sales receipt((當天)'!G9)","v":0},{"$f":"SUMIFS('Sales receipt((當天)'!J:J,'Sales receipt((當天)'!A:A,'Sales receipt((當天)'!A6,'Sales receipt((當天)'!B:B,'Sales receipt((當天)'!B4,'Sales receipt((當天)'!G:G,'Sales receipt((當天)'!G9)","v":0},{"$f":"SUMIFS('Sales receipt((當天)'!K:K,'Sales receipt((當天)'!A:A,'Sales receipt((當天)'!A8,'Sales receipt((當天)'!B:B,'Sales receipt((當天)'!B4,'Sales receipt((當天)'!G:G,'Sales receipt((當天)'!G9)","v":0},{"$f":"SUMIFS('Sales receipt((當天)'!J:J,'Sales receipt((當天)'!A:A,'Sales receipt((當天)'!A8,'Sales receipt((當天)'!B:B,'Sales receipt((當天)'!B4,'Sales receipt((當天)'!G:G,'Sales receipt((當天)'!G9)","v":0},{"$f":"SUMIFS('Sales receipt((當天)'!K:K,'Sales receipt((當天)'!A:A,'Sales receipt((當天)'!A4,'Sales receipt((當天)'!B:B,'Sales receipt((當天)'!B4,'Sales receipt((當天)'!G:G,'Sales receipt((當天)'!G9)","v":0},{"$f":"SUMIFS('Sales receipt((當天)'!J:J,'Sales receipt((當天)'!A:A,'Sales receipt((當天)'!A4,'Sales receipt((當天)'!B:B,'Sales receipt((當天)'!B4,'Sales receipt((當天)'!G:G,'Sales receipt((當天)'!G9)","v":0},{"$f":"SUMIFS('Sales receipt((當天)'!K:K,'Sales receipt((當天)'!A:A,'Sales receipt((當天)'!A5,'Sales receipt((當天)'!B:B,'Sales receipt((當天)'!B4,'Sales receipt((當天)'!G:G,'Sales receipt((當天)'!G9)","v":0},{"$f":"SUMIFS('Sales receipt((當天)'!J:J,'Sales receipt((當天)'!A:A,'Sales receipt((當天)'!A5,'Sales receipt((當天)'!B:B,'Sales receipt((當天)'!B4,'Sales receipt((當天)'!G:G,'Sales receipt((當天)'!G9)","v":0}]
["WHITE",{"$f":"SUMIFS('Sales receipt((當天)'!K:K,'Sales receipt((當天)'!A:A,'Sales receipt((當天)'!A2,'Sales receipt((當天)'!B:B,'Sales receipt((當天)'!B4,'Sales receipt((當天)'!G:G,'Sales receipt((當天)'!G17)","v":0},{"$f":"SUMIFS('Sales receipt((當天)'!J:J,'Sales receipt((當天)'!A:A,'Sales receipt((當天)'!A2,'Sales receipt((當天)'!B:B,'Sales receipt((當天)'!B4,'Sales receipt((當天)'!G:G,'Sales receipt((當天)'!G17)","v":0},{"$f":"SUMIFS('Sales receipt((當天)'!K:K,'Sales receipt((當天)'!A:A,'Sales receipt((當天)'!A3,'Sales receipt((當天)'!B:B,'Sales receipt((當天)'!B4,'Sales receipt((當天)'!G:G,'Sales receipt((當天)'!G17)","v":0},{"$f":"SUMIFS('Sales receipt((當天)'!J:J,'Sales receipt((當天)'!A:A,'Sales receipt((當天)'!A3,'Sales receipt((當天)'!B:B,'Sales receipt((當天)'!B4,'Sales receipt((當天)'!G:G,'Sales receipt((當天)'!G17)","v":0},{"$f":"SUMIFS('Sales receipt((當天)'!K:K,'Sales receipt((當天)'!A:A,'Sales receipt((當天)'!A7,'Sales receipt((當天)'!B:B,'Sales receipt((當天)'!B4,'Sales receipt((當天)'!G:G,'Sales receipt((當天)'!G17)","v":0},{"$f":"SUMIFS('Sales receipt((當天)'!J:J,'Sales receipt((當天)'!A:A,'Sales receipt((當天)'!A7,'Sales receipt((當天)'!B:B,'Sales receipt((當天)'!B4,'Sales receipt((當天)'!G:G,'Sales receipt((當天)'!G17)","v":0},{"$f":"SUMIFS('Sales receipt((當天)'!K:K,'Sales receipt((當天)'!A:A,'Sales receipt((當天)'!A6,'Sales receipt((當天)'!B:B,'Sales receipt((當天)'!B4,'Sales receipt((當天)'!G:G,'Sales receipt((當天)'!G17)","v":0},{"$f":"SUMIFS('Sales receipt((當天)'!J:J,'Sales receipt((當天)'!A:A,'Sales receipt((當天)'!A6,'Sales receipt((當天)'!B:B,'Sales receipt((當天)'!B4,'Sales receipt((當天)'!G:G,'Sales receipt((當天)'!G17)","v":0},{"$f":"SUMIFS('Sales receipt((當天)'!K:K,'Sales receipt((當天)'!A:A,'Sales receipt((當天)'!A8,'Sales receipt((當天)'!B:B,'Sales receipt((當天)'!B4,'Sales receipt((當天)'!G:G,'Sales receipt((當天)'!G17)","v":0},{"$f":"SUMIFS('Sales receipt((當天)'!J:J,'Sales receipt((當天)'!A:A,'Sales receipt((當天)'!A8,'Sales receipt((當天)'!B:B,'Sales receipt((當天)'!B4,'Sales receipt((當天)'!G:G,'Sales receipt((當天)'!G17)","v":0},{"$f":"SUMIFS('Sales receipt((當天)'!K:K,'Sales receipt((當天)'!A:A,'Sales receipt((當天)'!A4,'Sales receipt((當天)'!B:B,'Sales receipt((當天)'!B4,'Sales receipt((當天)'!G:G,'Sales receipt((當天)'!G17)","v":0},{"$f":"SUMIFS('Sales receipt((當天)'!J:J,'Sales receipt((當天)'!A:A,'Sales receipt((當天)'!A4,'Sales receipt((當天)'!B:B,'Sales receipt((當天)'!B4,'Sales receipt((當天)'!G:G,'Sales receipt((當天)'!G17)","v":0},{"$f":"SUMIFS('Sales receipt((當天)'!K:K,'Sales receipt((當天)'!A:A,'Sales receipt((當天)'!A5,'Sales receipt((當天)'!B:B,'Sales receipt((當天)'!B4,'Sales receipt((當天)'!G:G,'Sales receipt((當天)'!G17)","v":0},{"$f":"SUMIFS('Sales receipt((當天)'!J:J,'Sales receipt((當天)'!A:A,'Sales receipt((當天)'!A5,'Sales receipt((當天)'!B:B,'Sales receipt((當天)'!B4,'Sales receipt((當天)'!G:G,'Sales receipt((當天)'!G17)","v":0}]
["BLUE",{"$f":"SUMIFS('Sales receipt((當天)'!K:K,'Sales receipt((當天)'!A:A,'Sales receipt((當天)'!A2,'Sales receipt((當天)'!B:B,'Sales receipt((當天)'!B4,'Sales receipt((當天)'!G:G,'Sales receipt((當天)'!G3)","v":0},{"$f":"SUMIFS('Sales receipt((當天)'!J:J,'Sales receipt((當天)'!A:A,'Sales receipt((當天)'!A2,'Sales receipt((當天)'!B:B,'Sales receipt((當天)'!B4,'Sales receipt((當天)'!G:G,'Sales receipt((當天)'!G3)","v":0},{"$f":"SUMIFS('Sales receipt((當天)'!K:K,'Sales receipt((當天)'!A:A,'Sales receipt((當天)'!A3,'Sales receipt((當天)'!B:B,'Sales receipt((當天)'!B4,'Sales receipt((當天)'!G:G,'Sales receipt((當天)'!G3)","v":0},{"$f":"SUMIFS('Sales receipt((當天)'!J:J,'Sales receipt((當天)'!A:A,'Sales receipt((當天)'!A3,'Sales receipt((當天)'!B:B,'Sales receipt((當天)'!B4,'Sales receipt((當天)'!G:G,'Sales receipt((當天)'!G3)","v":0},{"$f":"SUMIFS('Sales receipt((當天)'!K:K,'Sales receipt((當天)'!A:A,'Sales receipt((當天)'!A7,'Sales receipt((當天)'!B:B,'Sales receipt((當天)'!B4,'Sales receipt((當天)'!G:G,'Sales receipt((當天)'!G3)","v":0},{"$f":"SUMIFS('Sales receipt((當天)'!J:J,'Sales receipt((當天)'!A:A,'Sales receipt((當天)'!A7,'Sales receipt((當天)'!B:B,'Sales receipt((當天)'!B4,'Sales receipt((當天)'!G:G,'Sales receipt((當天)'!G3)","v":0},{"$f":"SUMIFS('Sales receipt((當天)'!K:K,'Sales receipt((當天)'!A:A,'Sales receipt((當天)'!A6,'Sales receipt((當天)'!B:B,'Sales receipt((當天)'!B4,'Sales receipt((當天)'!G:G,'Sales receipt((當天)'!G3)","v":0},{"$f":"SUMIFS('Sales receipt((當天)'!J:J,'Sales receipt((當天)'!A:A,'Sales receipt((當天)'!A6,'Sales receipt((當天)'!B:B,'Sales receipt((當天)'!B4,'Sales receipt((當天)'!G:G,'Sales receipt((當天)'!G3)","v":0},{"$f":"SUMIFS('Sales receipt((當天)'!K:K,'Sales receipt((當天)'!A:A,'Sales receipt((當天)'!A8,'Sales receipt((當天)'!B:B,'Sales receipt((當天)'!B4,'Sales receipt((當天)'!G:G,'Sales receipt((當天)'!G3)","v":0},{"$f":"SUMIFS('Sales receipt((當天)'!J:J,'Sales receipt((當天)'!A:A,'Sales receipt((當天)'!A8,'Sales receipt((當天)'!B:B,'Sales receipt((當天)'!B4,'Sales receipt((當天)'!G:G,'Sales receipt((當天)'!G3)","v":0},{"$f":"SUMIFS('Sales receipt((當天)'!K:K,'Sales receipt((當天)'!A:A,'Sales receipt((當天)'!A4,'Sales receipt((當天)'!B:B,'Sales receipt((當天)'!B4,'Sales receipt((當天)'!G:G,'Sales receipt((當天)'!G3)","v":0},{"$f":"SUMIFS('Sales receipt((當天)'!J:J,'Sales receipt((當天)'!A:A,'Sales receipt((當天)'!A4,'Sales receipt((當天)'!B:B,'Sales receipt((當天)'!B4,'Sales receipt((當天)'!G:G,'Sales receipt((當天)'!G3)","v":0},{"$f":"SUMIFS('Sales receipt((當天)'!K:K,'Sales receipt((當天)'!A:A,'Sales receipt((當天)'!A5,'Sales receipt((當天)'!B:B,'Sales receipt((當天)'!B4,'Sales receipt((當天)'!G:G,'Sales receipt((當天)'!G3)","v":0},{"$f":"SUMIFS('Sales receipt((當天)'!J:J,'Sales receipt((當天)'!A:A,'Sales receipt((當天)'!A5,'Sales receipt((當天)'!B:B,'Sales receipt((當天)'!B4,'Sales receipt((當天)'!G:G,'Sales receipt((當天)'!G3)","v":0}]
["FITNESS",{"$f":"SUMIFS('Sales receipt((當天)'!K:K,'Sales receipt((當天)'!A:A,'Sales receipt((當天)'!A2,'Sales receipt((當天)'!B:B,'Sales receipt((當天)'!B4,'Sales receipt((當天)'!G:G,'Sales receipt((當天)'!G7)","v":0},{"$f":"SUMIFS('Sales receipt((當天)'!J:J,'Sales receipt((當天)'!A:A,'Sales receipt((當天)'!A2,'Sales receipt((當天)'!B:B,'Sales receipt((當天)'!B4,'Sales receipt((當天)'!G:G,'Sales receipt((當天)'!G7)","v":0},{"$f":"SUMIFS('Sales receipt((當天)'!K:K,'Sales receipt((當天)'!A:A,'Sales receipt((當天)'!A3,'Sales receipt((當天)'!B:B,'Sales receipt((當天)'!B4,'Sales receipt((當天)'!G:G,'Sales receipt((當天)'!G7)","v":0},{"$f":"SUMIFS('Sales receipt((當天)'!J:J,'Sales receipt((當天)'!A:A,'Sales receipt((當天)'!A3,'Sales receipt((當天)'!B:B,'Sales receipt((當天)'!B4,'Sales receipt((當天)'!G:G,'Sales receipt((當天)'!G7)","v":0},{"$f":"SUMIFS('Sales receipt((當天)'!K:K,'Sales receipt((當天)'!A:A,'Sales receipt((當天)'!A7,'Sales receipt((當天)'!B:B,'Sales receipt((當天)'!B4,'Sales receipt((當天)'!G:G,'Sales receipt((當天)'!G7)","v":0},{"$f":"SUMIFS('Sales receipt((當天)'!J:J,'Sales receipt((當天)'!A:A,'Sales receipt((當天)'!A7,'Sales receipt((當天)'!B:B,'Sales receipt((當天)'!B4,'Sales receipt((當天)'!G:G,'Sales receipt((當天)'!G7)","v":0},{"$f":"SUMIFS('Sales receipt((當天)'!K:K,'Sales receipt((當天)'!A:A,'Sales receipt((當天)'!A6,'Sales receipt((當天)'!B:B,'Sales receipt((當天)'!B4,'Sales receipt((當天)'!G:G,'Sales receipt((當天)'!G7)","v":0},{"$f":"SUMIFS('Sales receipt((當天)'!J:J,'Sales receipt((當天)'!A:A,'Sales receipt((當天)'!A6,'Sales receipt((當天)'!B:B,'Sales receipt((當天)'!B4,'Sales receipt((當天)'!G:G,'Sales receipt((當天)'!G7)","v":0},{"$f":"SUMIFS('Sales receipt((當天)'!K:K,'Sales receipt((當天)'!A:A,'Sales receipt((當天)'!A8,'Sales receipt((當天)'!B:B,'Sales receipt((當天)'!B4,'Sales receipt((當天)'!G:G,'Sales receipt((當天)'!G7)","v":0},{"$f":"SUMIFS('Sales receipt((當天)'!J:J,'Sales receipt((當天)'!A:A,'Sales receipt((當天)'!A8,'Sales receipt((當天)'!B:B,'Sales receipt((當天)'!B4,'Sales receipt((當天)'!G:G,'Sales receipt((當天)'!G7)","v":0},{"$f":"SUMIFS('Sales receipt((當天)'!K:K,'Sales receipt((當天)'!A:A,'Sales receipt((當天)'!A4,'Sales receipt((當天)'!B:B,'Sales receipt((當天)'!B4,'Sales receipt((當天)'!G:G,'Sales receipt((當天)'!G7)","v":0},{"$f":"SUMIFS('Sales receipt((當天)'!J:J,'Sales receipt((當天)'!A:A,'Sales receipt((當天)'!A4,'Sales receipt((當天)'!B:B,'Sales receipt((當天)'!B4,'Sales receipt((當天)'!G:G,'Sales receipt((當天)'!G7)","v":0},{"$f":"SUMIFS('Sales receipt((當天)'!K:K,'Sales receipt((當天)'!A:A,'Sales receipt((當天)'!A5,'Sales receipt((當天)'!B:B,'Sales receipt((當天)'!B4,'Sales receipt((當天)'!G:G,'Sales receipt((當天)'!G7)","v":0},{"$f":"SUMIFS('Sales receipt((當天)'!J:J,'Sales receipt((當天)'!A:A,'Sales receipt((當天)'!A5,'Sales receipt((當天)'!B:B,'Sales receipt((當天)'!B4,'Sales receipt((當天)'!G:G,'Sales receipt((當天)'!G7)","v":0}]
["A.P.",{"$f":"SUMIFS('Sales receipt((當天)'!K:K,'Sales receipt((當天)'!A:A,'Sales receipt((當天)'!A2,'Sales receipt((當天)'!B:B,'Sales receipt((當天)'!B4,'Sales receipt((當天)'!G:G,'Sales receipt((當天)'!G2)","v":0},{"$f":"SUMIFS('Sales receipt((當天)'!J:J,'Sales receipt((當天)'!A:A,'Sales receipt((當天)'!A2,'Sales receipt((當天)'!B:B,'Sales receipt((當天)'!B4,'Sales receipt((當天)'!G:G,'Sales receipt((當天)'!G2)","v":0},{"$f":"SUMIFS('Sales receipt((當天)'!K:K,'Sales receipt((當天)'!A:A,'Sales receipt((當天)'!A3,'Sales receipt((當天)'!B:B,'Sales receipt((當天)'!B4,'Sales receipt((當天)'!G:G,'Sales receipt((當天)'!G2)","v":0},{"$f":"SUMIFS('Sales receipt((當天)'!J:J,'Sales receipt((當天)'!A:A,'Sales receipt((當天)'!A3,'Sales receipt((當天)'!B:B,'Sales receipt((當天)'!B4,'Sales receipt((當天)'!G:G,'Sales receipt((當天)'!G2)","v":0},{"$f":"SUMIFS('Sales receipt((當天)'!K:K,'Sales receipt((當天)'!A:A,'Sales receipt((當天)'!A7,'Sales receipt((當天)'!B:B,'Sales receipt((當天)'!B4,'Sales receipt((當天)'!G:G,'Sales receipt((當天)'!G2)","v":0},{"$f":"SUMIFS('Sales receipt((當天)'!J:J,'Sales receipt((當天)'!A:A,'Sales receipt((當天)'!A7,'Sales receipt((當天)'!B:B,'Sales receipt((當天)'!B4,'Sales receipt((當天)'!G:G,'Sales receipt((當天)'!G2)","v":0},{"$f":"SUMIFS('Sales receipt((當天)'!K:K,'Sales receipt((當天)'!A:A,'Sales receipt((當天)'!A6,'Sales receipt((當天)'!B:B,'Sales receipt((當天)'!B4,'Sales receipt((當天)'!G:G,'Sales receipt((當天)'!G2)","v":0},{"$f":"SUMIFS('Sales receipt((當天)'!J:J,'Sales receipt((當天)'!A:A,'Sales receipt((當天)'!A6,'Sales receipt((當天)'!B:B,'Sales receipt((當天)'!B4,'Sales receipt((當天)'!G:G,'Sales receipt((當天)'!G2)","v":0},{"$f":"SUMIFS('Sales receipt((當天)'!K:K,'Sales receipt((當天)'!A:A,'Sales receipt((當天)'!A8,'Sales receipt((當天)'!B:B,'Sales receipt((當天)'!B4,'Sales receipt((當天)'!G:G,'Sales receipt((當天)'!G2)","v":0},{"$f":"SUMIFS('Sales receipt((當天)'!J:J,'Sales receipt((當天)'!A:A,'Sales receipt((當天)'!A8,'Sales receipt((當天)'!B:B,'Sales receipt((當天)'!B4,'Sales receipt((當天)'!G:G,'Sales receipt((當天)'!G2)","v":0},{"$f":"SUMIFS('Sales receipt((當天)'!K:K,'Sales receipt((當天)'!A:A,'Sales receipt((當天)'!A4,'Sales receipt((當天)'!B:B,'Sales receipt((當天)'!B4,'Sales receipt((當天)'!G:G,'Sales receipt((當天)'!G2)","v":0},{"$f":"SUMIFS('Sales receipt((當天)'!J:J,'Sales receipt((當天)'!A:A,'Sales receipt((當天)'!A4,'Sales receipt((當天)'!B:B,'Sales receipt((當天)'!B4,'Sales receipt((當天)'!G:G,'Sales receipt((當天)'!G2)","v":0},{"$f":"SUMIFS('Sales receipt((當天)'!K:K,'Sales receipt((當天)'!A:A,'Sales receipt((當天)'!A5,'Sales receipt((當天)'!B:B,'Sales receipt((當天)'!B4,'Sales receipt((當天)'!G:G,'Sales receipt((當天)'!G2)","v":0},{"$f":"SUMIFS('Sales receipt((當天)'!J:J,'Sales receipt((當天)'!A:A,'Sales receipt((當天)'!A5,'Sales receipt((當天)'!B:B,'Sales receipt((當天)'!B4,'Sales receipt((當天)'!G:G,'Sales receipt((當天)'!G2)","v":0}]
["GOLF",{"$f":"SUMIFS('Sales receipt((當天)'!K:K,'Sales receipt((當天)'!A:A,'Sales receipt((當天)'!A2,'Sales receipt((當天)'!B:B,'Sales receipt((當天)'!B4,'Sales receipt((當天)'!G:G,'Sales receipt((當天)'!G8)","v":0},{"$f":"SUMIFS('Sales receipt((當天)'!J:J,'Sales receipt((當天)'!A:A,'Sales receipt((當天)'!A2,'Sales receipt((當天)'!B:B,'Sales receipt((當天)'!B4,'Sales receipt((當天)'!G:G,'Sales receipt((當天)'!G8)","v":0},{"$f":"SUMIFS('Sales receipt((當天)'!K:K,'Sales receipt((當天)'!A:A,'Sales receipt((當天)'!A3,'Sales receipt((當天)'!B:B,'Sales receipt((當天)'!B4,'Sales receipt((當天)'!G:G,'Sales receipt((當天)'!G8)","v":0},{"$f":"SUMIFS('Sales receipt((當天)'!J:J,'Sales receipt((當天)'!A:A,'Sales receipt((當天)'!A3,'Sales receipt((當天)'!B:B,'Sales receipt((當天)'!B4,'Sales receipt((當天)'!G:G,'Sales receipt((當天)'!G8)","v":0},{"$f":"SUMIFS('Sales receipt((當天)'!K:K,'Sales receipt((當天)'!A:A,'Sales receipt((當天)'!A7,'Sales receipt((當天)'!B:B,'Sales receipt((當天)'!B4,'Sales receipt((當天)'!G:G,'Sales receipt((當天)'!G8)","v":0},{"$f":"SUMIFS('Sales receipt((當天)'!J:J,'Sales receipt((當天)'!A:A,'Sales receipt((當天)'!A7,'Sales receipt((當天)'!B:B,'Sales receipt((當天)'!B4,'Sales receipt((當天)'!G:G,'Sales receipt((當天)'!G8)","v":0},{"$f":"SUMIFS('Sales receipt((當天)'!K:K,'Sales receipt((當天)'!A:A,'Sales receipt((當天)'!A6,'Sales receipt((當天)'!B:B,'Sales receipt((當天)'!B4,'Sales receipt((當天)'!G:G,'Sales receipt((當天)'!G8)","v":0},{"$f":"SUMIFS('Sales receipt((當天)'!J:J,'Sales receipt((當天)'!A:A,'Sales receipt((當天)'!A6,'Sales receipt((當天)'!B:B,'Sales receipt((當天)'!B4,'Sales receipt((當天)'!G:G,'Sales receipt((當天)'!G8)","v":0},{"$f":"SUMIFS('Sales receipt((當天)'!K:K,'Sales receipt((當天)'!A:A,'Sales receipt((當天)'!A8,'Sales receipt((當天)'!B:B,'Sales receipt((當天)'!B4,'Sales receipt((當天)'!G:G,'Sales receipt((當天)'!G8)","v":0},{"$f":"SUMIFS('Sales receipt((當天)'!J:J,'Sales receipt((當天)'!A:A,'Sales receipt((當天)'!A8,'Sales receipt((當天)'!B:B,'Sales receipt((當天)'!B4,'Sales receipt((當天)'!G:G,'Sales receipt((當天)'!G8)","v":0},{"$f":"SUMIFS('Sales receipt((當天)'!K:K,'Sales receipt((當天)'!A:A,'Sales receipt((當天)'!A4,'Sales receipt((當天)'!B:B,'Sales receipt((當天)'!B4,'Sales receipt((當天)'!G:G,'Sales receipt((當天)'!G8)","v":0},{"$f":"SUMIFS('Sales receipt((當天)'!J:J,'Sales receipt((當天)'!A:A,'Sales receipt((當天)'!A4,'Sales receipt((當天)'!B:B,'Sales receipt((當天)'!B4,'Sales receipt((當天)'!G:G,'Sales receipt((當天)'!G8)","v":0},{"$f":"SUMIFS('Sales receipt((當天)'!K:K,'Sales receipt((當天)'!A:A,'Sales receipt((當天)'!A5,'Sales receipt((當天)'!B:B,'Sales receipt((當天)'!B4,'Sales receipt((當天)'!G:G,'Sales receipt((當天)'!G8)","v":0},{"$f":"SUMIFS('Sales receipt((當天)'!J:J,'Sales receipt((當天)'!A:A,'Sales receipt((當天)'!A5,'Sales receipt((當天)'!B:B,'Sales receipt((當天)'!B4,'Sales receipt((當天)'!G:G,'Sales receipt((當天)'!G8)","v":0}]
["EXPLORE",{"$f":"SUMIFS('Sales receipt((當天)'!K:K,'Sales receipt((當天)'!A:A,'Sales receipt((當天)'!A2,'Sales receipt((當天)'!B:B,'Sales receipt((當天)'!B4,'Sales receipt((當天)'!G:G,'Sales receipt((當天)'!G4)","v":0},{"$f":"SUMIFS('Sales receipt((當天)'!J:J,'Sales receipt((當天)'!A:A,'Sales receipt((當天)'!A2,'Sales receipt((當天)'!B:B,'Sales receipt((當天)'!B4,'Sales receipt((當天)'!G:G,'Sales receipt((當天)'!G4)","v":0},{"$f":"SUMIFS('Sales receipt((當天)'!K:K,'Sales receipt((當天)'!A:A,'Sales receipt((當天)'!A3,'Sales receipt((當天)'!B:B,'Sales receipt((當天)'!B4,'Sales receipt((當天)'!G:G,'Sales receipt((當天)'!G4)","v":0},{"$f":"SUMIFS('Sales receipt((當天)'!J:J,'Sales receipt((當天)'!A:A,'Sales receipt((當天)'!A3,'Sales receipt((當天)'!B:B,'Sales receipt((當天)'!B4,'Sales receipt((當天)'!G:G,'Sales receipt((當天)'!G4)","v":0},{"$f":"SUMIFS('Sales receipt((當天)'!K:K,'Sales receipt((當天)'!A:A,'Sales receipt((當天)'!A7,'Sales receipt((當天)'!B:B,'Sales receipt((當天)'!B4,'Sales receipt((當天)'!G:G,'Sales receipt((當天)'!G4)","v":0},{"$f":"SUMIFS('Sales receipt((當天)'!J:J,'Sales receipt((當天)'!A:A,'Sales receipt((當天)'!A7,'Sales receipt((當天)'!B:B,'Sales receipt((當天)'!B4,'Sales receipt((當天)'!G:G,'Sales receipt((當天)'!G4)","v":0},{"$f":"SUMIFS('Sales receipt((當天)'!K:K,'Sales receipt((當天)'!A:A,'Sales receipt((當天)'!A6,'Sales receipt((當天)'!B:B,'Sales receipt((當天)'!B4,'Sales receipt((當天)'!G:G,'Sales receipt((當天)'!G4)","v":0},{"$f":"SUMIFS('Sales receipt((當天)'!J:J,'Sales receipt((當天)'!A:A,'Sales receipt((當天)'!A6,'Sales receipt((當天)'!B:B,'Sales receipt((當天)'!B4,'Sales receipt((當天)'!G:G,'Sales receipt((當天)'!G4)","v":0},{"$f":"SUMIFS('Sales receipt((當天)'!K:K,'Sales receipt((當天)'!A:A,'Sales receipt((當天)'!A8,'Sales receipt((當天)'!B:B,'Sales receipt((當天)'!B4,'Sales receipt((當天)'!G:G,'Sales receipt((當天)'!G4)","v":0},{"$f":"SUMIFS('Sales receipt((當天)'!J:J,'Sales receipt((當天)'!A:A,'Sales receipt((當天)'!A8,'Sales receipt((當天)'!B:B,'Sales receipt((當天)'!B4,'Sales receipt((當天)'!G:G,'Sales receipt((當天)'!G4)","v":0},{"$f":"SUMIFS('Sales receipt((當天)'!K:K,'Sales receipt((當天)'!A:A,'Sales receipt((當天)'!A4,'Sales receipt((當天)'!B:B,'Sales receipt((當天)'!B4,'Sales receipt((當天)'!G:G,'Sales receipt((當天)'!G4)","v":0},{"$f":"SUMIFS('Sales receipt((當天)'!J:J,'Sales receipt((當天)'!A:A,'Sales receipt((當天)'!A4,'Sales receipt((當天)'!B:B,'Sales receipt((當天)'!B4,'Sales receipt((當天)'!G:G,'Sales receipt((當天)'!G4)","v":0},{"$f":"SUMIFS('Sales receipt((當天)'!K:K,'Sales receipt((當天)'!A:A,'Sales receipt((當天)'!A5,'Sales receipt((當天)'!B:B,'Sales receipt((當天)'!B4,'Sales receipt((當天)'!G:G,'Sales receipt((當天)'!G4)","v":0},{"$f":"SUMIFS('Sales receipt((當天)'!J:J,'Sales receipt((當天)'!A:A,'Sales receipt((當天)'!A5,'Sales receipt((當天)'!B:B,'Sales receipt((當天)'!B4,'Sales receipt((當天)'!G:G,'Sales receipt((當天)'!G4)","v":0}]
["TENNIS",{"$f":"SUMIFS('Sales receipt((當天)'!K:K,'Sales receipt((當天)'!A:A,'Sales receipt((當天)'!A2,'Sales receipt((當天)'!B:B,'Sales receipt((當天)'!B4,'Sales receipt((當天)'!G:G,'Sales receipt((當天)'!G16)","v":0},{"$f":"SUMIFS('Sales receipt((當天)'!J:J,'Sales receipt((當天)'!A:A,'Sales receipt((當天)'!A2,'Sales receipt((當天)'!B:B,'Sales receipt((當天)'!B4,'Sales receipt((當天)'!G:G,'Sales receipt((當天)'!G16)","v":0},{"$f":"SUMIFS('Sales receipt((當天)'!K:K,'Sales receipt((當天)'!A:A,'Sales receipt((當天)'!A3,'Sales receipt((當天)'!B:B,'Sales receipt((當天)'!B4,'Sales receipt((當天)'!G:G,'Sales receipt((當天)'!G16)","v":0},{"$f":"SUMIFS('Sales receipt((當天)'!J:J,'Sales receipt((當天)'!A:A,'Sales receipt((當天)'!A3,'Sales receipt((當天)'!B:B,'Sales receipt((當天)'!B4,'Sales receipt((當天)'!G:G,'Sales receipt((當天)'!G16)","v":0},{"$f":"SUMIFS('Sales receipt((當天)'!K:K,'Sales receipt((當天)'!A:A,'Sales receipt((當天)'!A7,'Sales receipt((當天)'!B:B,'Sales receipt((當天)'!B4,'Sales receipt((當天)'!G:G,'Sales receipt((當天)'!G16)","v":0},{"$f":"SUMIFS('Sales receipt((當天)'!J:J,'Sales receipt((當天)'!A:A,'Sales receipt((當天)'!A7,'Sales receipt((當天)'!B:B,'Sales receipt((當天)'!B4,'Sales receipt((當天)'!G:G,'Sales receipt((當天)'!G16)","v":0},{"$f":"SUMIFS('Sales receipt((當天)'!K:K,'Sales receipt((當天)'!A:A,'Sales receipt((當天)'!A6,'Sales receipt((當天)'!B:B,'Sales receipt((當天)'!B4,'Sales receipt((當天)'!G:G,'Sales receipt((當天)'!G16)","v":0},{"$f":"SUMIFS('Sales receipt((當天)'!J:J,'Sales receipt((當天)'!A:A,'Sales receipt((當天)'!A6,'Sales receipt((當天)'!B:B,'Sales receipt((當天)'!B4,'Sales receipt((當天)'!G:G,'Sales receipt((當天)'!G16)","v":0},{"$f":"SUMIFS('Sales receipt((當天)'!K:K,'Sales receipt((當天)'!A:A,'Sales receipt((當天)'!A8,'Sales receipt((當天)'!B:B,'Sales receipt((當天)'!B4,'Sales receipt((當天)'!G:G,'Sales receipt((當天)'!G16)","v":0},{"$f":"SUMIFS('Sales receipt((當天)'!J:J,'Sales receipt((當天)'!A:A,'Sales receipt((當天)'!A8,'Sales receipt((當天)'!B:B,'Sales receipt((當天)'!B4,'Sales receipt((當天)'!G:G,'Sales receipt((當天)'!G16)","v":0},{"$f":"SUMIFS('Sales receipt((當天)'!K:K,'Sales receipt((當天)'!A:A,'Sales receipt((當天)'!A4,'Sales receipt((當天)'!B:B,'Sales receipt((當天)'!B4,'Sales receipt((當天)'!G:G,'Sales receipt((當天)'!G16)","v":0},{"$f":"SUMIFS('Sales receipt((當天)'!J:J,'Sales receipt((當天)'!A:A,'Sales receipt((當天)'!A4,'Sales receipt((當天)'!B:B,'Sales receipt((當天)'!B4,'Sales receipt((當天)'!G:G,'Sales receipt((當天)'!G16)","v":0},{"$f":"SUMIFS('Sales receipt((當天)'!K:K,'Sales receipt((當天)'!A:A,'Sales receipt((當天)'!A5,'Sales receipt((當天)'!B:B,'Sales receipt((當天)'!B4,'Sales receipt((當天)'!G:G,'Sales receipt((當天)'!G16)","v":0},{"$f":"SUMIFS('Sales receipt((當天)'!J:J,'Sales receipt((當天)'!A:A,'Sales receipt((當天)'!A5,'Sales receipt((當天)'!B:B,'Sales receipt((當天)'!B4,'Sales receipt((當天)'!G:G,'Sales receipt((當天)'!G16)","v":0}]
[]
["FOT",{"$f":"SUMIFS('Sales receipt((當天)'!K:K,'Sales receipt((當天)'!A:A,'Sales receipt((當天)'!A2,'Sales receipt((當天)'!B:B,'Sales receipt((當天)'!B6)","v":0},{"$f":"SUMIFS('Sales receipt((當天)'!J:J,'Sales receipt((當天)'!A:A,'Sales receipt((當天)'!A2,'Sales receipt((當天)'!B:B,'Sales receipt((當天)'!B6)","v":0},{"$f":"SUMIFS('Sales receipt((當天)'!K:K,'Sales receipt((當天)'!A:A,'Sales receipt((當天)'!A3,'Sales receipt((當天)'!B:B,'Sales receipt((當天)'!B6)","v":0},{"$f":"SUMIFS('Sales receipt((當天)'!J:J,'Sales receipt((當天)'!A:A,'Sales receipt((當天)'!A3,'Sales receipt((當天)'!B:B,'Sales receipt((當天)'!B6)","v":0},{"$f":"SUMIFS('Sales receipt((當天)'!K:K,'Sales receipt((當天)'!A:A,'Sales receipt((當天)'!A7,'Sales receipt((當天)'!B:B,'Sales receipt((當天)'!B6)","v":0},{"$f":"SUMIFS('Sales receipt((當天)'!J:J,'Sales receipt((當天)'!A:A,'Sales receipt((當天)'!A7,'Sales receipt((當天)'!B:B,'Sales receipt((當天)'!B6)","v":0},{"$f":"SUMIFS('Sales receipt((當天)'!K:K,'Sales receipt((當天)'!A:A,'Sales receipt((當天)'!A6,'Sales receipt((當天)'!B:B,'Sales receipt((當天)'!B6)","v":0},{"$f":"SUMIFS('Sales receipt((當天)'!J:J,'Sales receipt((當天)'!A:A,'Sales receipt((當天)'!A6,'Sales receipt((當天)'!B:B,'Sales receipt((當天)'!B6)","v":0},{"$f":"SUMIFS('Sales receipt((當天)'!K:K,'Sales receipt((當天)'!A:A,'Sales receipt((當天)'!A8,'Sales receipt((當天)'!B:B,'Sales receipt((當天)'!B6)","v":0},{"$f":"SUMIFS('Sales receipt((當天)'!J:J,'Sales receipt((當天)'!A:A,'Sales receipt((當天)'!A8,'Sales receipt((當天)'!B:B,'Sales receipt((當天)'!B6)","v":0},{"$f":"SUMIFS('Sales receipt((當天)'!K:K,'Sales receipt((當天)'!A:A,'Sales receipt((當天)'!A4,'Sales receipt((當天)'!B:B,'Sales receipt((當天)'!B6)","v":0},{"$f":"SUMIFS('Sales receipt((當天)'!J:J,'Sales receipt((當天)'!A:A,'Sales receipt((當天)'!A4,'Sales receipt((當天)'!B:B,'Sales receipt((當天)'!B6)","v":0},{"$f":"SUMIFS('Sales receipt((當天)'!K:K,'Sales receipt((當天)'!A:A,'Sales receipt((當天)'!A5,'Sales receipt((當天)'!B:B,'Sales receipt((當天)'!B6)","v":0},{"$f":"SUMIFS('Sales receipt((當天)'!J:J,'Sales receipt((當天)'!A:A,'Sales receipt((當天)'!A5,'Sales receipt((當天)'!B:B,'Sales receipt((當天)'!B6)","v":0}]
["M",{"$f":"SUM(SUMIFS('Sales receipt((當天)'!K:K,'Sales receipt((當天)'!A:A,'Sales receipt((當天)'!A2,'Sales receipt((當天)'!B:B,'Sales receipt((當天)'!B6,'Sales receipt((當天)'!H:H,{\"MALE\",\"男\"}))","v":0},{"$f":"SUM(SUMIFS('Sales receipt((當天)'!J:J,'Sales receipt((當天)'!A:A,'Sales receipt((當天)'!A2,'Sales receipt((當天)'!B:B,'Sales receipt((當天)'!B6,'Sales receipt((當天)'!H:H,{\"MALE\",\"男\"}))","v":0},{"$f":"SUM(SUMIFS('Sales receipt((當天)'!K:K,'Sales receipt((當天)'!A:A,'Sales receipt((當天)'!A3,'Sales receipt((當天)'!B:B,'Sales receipt((當天)'!B6,'Sales receipt((當天)'!H:H,{\"MALE\",\"男\"}))","v":0},{"$f":"SUM(SUMIFS('Sales receipt((當天)'!J:J,'Sales receipt((當天)'!A:A,'Sales receipt((當天)'!A3,'Sales receipt((當天)'!B:B,'Sales receipt((當天)'!B6,'Sales receipt((當天)'!H:H,{\"MALE\",\"男\"}))","v":0},{"$f":"SUM(SUMIFS('Sales receipt((當天)'!K:K,'Sales receipt((當天)'!A:A,'Sales receipt((當天)'!A7,'Sales receipt((當天)'!B:B,'Sales receipt((當天)'!B6,'Sales receipt((當天)'!H:H,{\"MALE\",\"男\"}))","v":0},{"$f":"SUM(SUMIFS('Sales receipt((當天)'!J:J,'Sales receipt((當天)'!A:A,'Sales receipt((當天)'!A7,'Sales receipt((當天)'!B:B,'Sales receipt((當天)'!B6,'Sales receipt((當天)'!H:H,{\"MALE\",\"男\"}))","v":0},{"$f":"SUM(SUMIFS('Sales receipt((當天)'!K:K,'Sales receipt((當天)'!A:A,'Sales receipt((當天)'!A6,'Sales receipt((當天)'!B:B,'Sales receipt((當天)'!B6,'Sales receipt((當天)'!H:H,{\"MALE\",\"男\"}))","v":0},{"$f":"SUM(SUMIFS('Sales receipt((當天)'!J:J,'Sales receipt((當天)'!A:A,'Sales receipt((當天)'!A6,'Sales receipt((當天)'!B:B,'Sales receipt((當天)'!B6,'Sales receipt((當天)'!H:H,{\"MALE\",\"男\"}))","v":0},{"$f":"SUM(SUMIFS('Sales receipt((當天)'!K:K,'Sales receipt((當天)'!A:A,'Sales receipt((當天)'!A8,'Sales receipt((當天)'!B:B,'Sales receipt((當天)'!B6,'Sales receipt((當天)'!H:H,{\"MALE\",\"男\"}))","v":0},{"$f":"SUM(SUMIFS('Sales receipt((當天)'!J:J,'Sales receipt((當天)'!A:A,'Sales receipt((當天)'!A8,'Sales receipt((當天)'!B:B,'Sales receipt((當天)'!B6,'Sales receipt((當天)'!H:H,{\"MALE\",\"男\"}))","v":0},{"$f":"SUM(SUMIFS('Sales receipt((當天)'!K:K,'Sales receipt((當天)'!A:A,'Sales receipt((當天)'!A4,'Sales receipt((當天)'!B:B,'Sales receipt((當天)'!B6,'Sales receipt((當天)'!H:H,{\"MALE\",\"男\"}))","v":0},{"$f":"SUM(SUMIFS('Sales receipt((當天)'!J:J,'Sales receipt((當天)'!A:A,'Sales receipt((當天)'!A4,'Sales receipt((當天)'!B:B,'Sales receipt((當天)'!B6,'Sales receipt((當天)'!H:H,{\"MALE\",\"男\"}))","v":0},{"$f":"SUM(SUMIFS('Sales receipt((當天)'!K:K,'Sales receipt((當天)'!A:A,'Sales receipt((當天)'!A5,'Sales receipt((當天)'!B:B,'Sales receipt((當天)'!B6,'Sales receipt((當天)'!H:H,{\"MALE\",\"男\"}))","v":0},{"$f":"SUM(SUMIFS('Sales receipt((當天)'!J:J,'Sales receipt((當天)'!A:A,'Sales receipt((當天)'!A5,'Sales receipt((當天)'!B:B,'Sales receipt((當天)'!B6,'Sales receipt((當天)'!H:H,{\"MALE\",\"男\"}))","v":0}]
["F",{"$f":"SUM(SUMIFS('Sales receipt((當天)'!K:K,'Sales receipt((當天)'!A:A,'Sales receipt((當天)'!A2,'Sales receipt((當天)'!B:B,'Sales receipt((當天)'!B6,'Sales receipt((當天)'!H:H,{\"FEMALE\",\"女\"}))","v":0},{"$f":"SUM(SUMIFS('Sales receipt((當天)'!J:J,'Sales receipt((當天)'!A:A,'Sales receipt((當天)'!A2,'Sales receipt((當天)'!B:B,'Sales receipt((當天)'!B6,'Sales receipt((當天)'!H:H,{\"FEMALE\",\"女\"}))","v":0},{"$f":"SUM(SUMIFS('Sales receipt((當天)'!K:K,'Sales receipt((當天)'!A:A,'Sales receipt((當天)'!A3,'Sales receipt((當天)'!B:B,'Sales receipt((當天)'!B6,'Sales receipt((當天)'!H:H,{\"FEMALE\",\"女\"}))","v":0},{"$f":"SUM(SUMIFS('Sales receipt((當天)'!J:J,'Sales receipt((當天)'!A:A,'Sales receipt((當天)'!A3,'Sales receipt((當天)'!B:B,'Sales receipt((當天)'!B6,'Sales receipt((當天)'!H:H,{\"FEMALE\",\"女\"}))","v":0},{"$f":"SUM(SUMIFS('Sales receipt((當天)'!K:K,'Sales receipt((當天)'!A:A,'Sales receipt((當天)'!A7,'Sales receipt((當天)'!B:B,'Sales receipt((當天)'!B6,'Sales receipt((當天)'!H:H,{\"FEMALE\",\"女\"}))","v":0},{"$f":"SUM(SUMIFS('Sales receipt((當天)'!J:J,'Sales receipt((當天)'!A:A,'Sales receipt((當天)'!A7,'Sales receipt((當天)'!B:B,'Sales receipt((當天)'!B6,'Sales receipt((當天)'!H:H,{\"FEMALE\",\"女\"}))","v":0},{"$f":"SUM(SUMIFS('Sales receipt((當天)'!K:K,'Sales receipt((當天)'!A:A,'Sales receipt((當天)'!A6,'Sales receipt((當天)'!B:B,'Sales receipt((當天)'!B6,'Sales receipt((當天)'!H:H,{\"FEMALE\",\"女\"}))","v":0},{"$f":"SUM(SUMIFS('Sales receipt((當天)'!J:J,'Sales receipt((當天)'!A:A,'Sales receipt((當天)'!A6,'Sales receipt((當天)'!B:B,'Sales receipt((當天)'!B6,'Sales receipt((當天)'!H:H,{\"FEMALE\",\"女\"}))","v":0},{"$f":"SUM(SUMIFS('Sales receipt((當天)'!K:K,'Sales receipt((當天)'!A:A,'Sales receipt((當天)'!A8,'Sales receipt((當天)'!B:B,'Sales receipt((當天)'!B6,'Sales receipt((當天)'!H:H,{\"FEMALE\",\"女\"}))","v":0},{"$f":"SUM(SUMIFS('Sales receipt((當天)'!J:J,'Sales receipt((當天)'!A:A,'Sales receipt((當天)'!A8,'Sales receipt((當天)'!B:B,'Sales receipt((當天)'!B6,'Sales receipt((當天)'!H:H,{\"FEMALE\",\"女\"}))","v":0},{"$f":"SUM(SUMIFS('Sales receipt((當天)'!K:K,'Sales receipt((當天)'!A:A,'Sales receipt((當天)'!A4,'Sales receipt((當天)'!B:B,'Sales receipt((當天)'!B6,'Sales receipt((當天)'!H:H,{\"FEMALE\",\"女\"}))","v":0},{"$f":"SUM(SUMIFS('Sales receipt((當天)'!J:J,'Sales receipt((當天)'!A:A,'Sales receipt((當天)'!A4,'Sales receipt((當天)'!B:B,'Sales receipt((當天)'!B6,'Sales receipt((當天)'!H:H,{\"FEMALE\",\"女\"}))","v":0},{"$f":"SUM(SUMIFS('Sales receipt((當天)'!K:K,'Sales receipt((當天)'!A:A,'Sales receipt((當天)'!A5,'Sales receipt((當天)'!B:B,'Sales receipt((當天)'!B6,'Sales receipt((當天)'!H:H,{\"FEMALE\",\"女\"}))","v":0},{"$f":"SUM(SUMIFS('Sales receipt((當天)'!J:J,'Sales receipt((當天)'!A:A,'Sales receipt((當天)'!A5,'Sales receipt((當天)'!B:B,'Sales receipt((當天)'!B6,'Sales receipt((當天)'!H:H,{\"FEMALE\",\"女\"}))","v":0}]
["ACC",{"$f":"SUMIFS('Sales receipt((當天)'!K:K,'Sales receipt((當天)'!A:A,'Sales receipt((當天)'!A2,'Sales receipt((當天)'!B:B,'Sales receipt((當天)'!B5)","v":0},{"$f":"SUMIFS('Sales receipt((當天)'!J:J,'Sales receipt((當天)'!A:A,'Sales receipt((當天)'!A2,'Sales receipt((當天)'!B:B,'Sales receipt((當天)'!B5)","v":0},{"$f":"SUMIFS('Sales receipt((當天)'!K:K,'Sales receipt((當天)'!A:A,'Sales receipt((當天)'!A3,'Sales receipt((當天)'!B:B,'Sales receipt((當天)'!B5)","v":0},{"$f":"SUMIFS('Sales receipt((當天)'!J:J,'Sales receipt((當天)'!A:A,'Sales receipt((當天)'!A3,'Sales receipt((當天)'!B:B,'Sales receipt((當天)'!B5)","v":0},{"$f":"SUMIFS('Sales receipt((當天)'!K:K,'Sales receipt((當天)'!A:A,'Sales receipt((當天)'!A7,'Sales receipt((當天)'!B:B,'Sales receipt((當天)'!B5)","v":0},{"$f":"SUMIFS('Sales receipt((當天)'!J:J,'Sales receipt((當天)'!A:A,'Sales receipt((當天)'!A7,'Sales receipt((當天)'!B:B,'Sales receipt((當天)'!B5)","v":0},{"$f":"SUMIFS('Sales receipt((當天)'!K:K,'Sales receipt((當天)'!A:A,'Sales receipt((當天)'!A6,'Sales receipt((當天)'!B:B,'Sales receipt((當天)'!B5)","v":0},{"$f":"SUMIFS('Sales receipt((當天)'!J:J,'Sales receipt((當天)'!A:A,'Sales receipt((當天)'!A6,'Sales receipt((當天)'!B:B,'Sales receipt((當天)'!B5)","v":0},{"$f":"SUMIFS('Sales receipt((當天)'!K:K,'Sales receipt((當天)'!A:A,'Sales receipt((當天)'!A8,'Sales receipt((當天)'!B:B,'Sales receipt((當天)'!B5)","v":0},{"$f":"SUMIFS('Sales receipt((當天)'!J:J,'Sales receipt((當天)'!A:A,'Sales receipt((當天)'!A8,'Sales receipt((當天)'!B:B,'Sales receipt((當天)'!B5)","v":0},{"$f":"SUMIFS('Sales receipt((當天)'!K:K,'Sales receipt((當天)'!A:A,'Sales receipt((當天)'!A4,'Sales receipt((當天)'!B:B,'Sales receipt((當天)'!B5)","v":0},{"$f":"SUMIFS('Sales receipt((當天)'!J:J,'Sales receipt((當天)'!A:A,'Sales receipt((當天)'!A4,'Sales receipt((當天)'!B:B,'Sales receipt((當天)'!B5)","v":0},{"$f":"SUMIFS('Sales receipt((當天)'!K:K,'Sales receipt((當天)'!A:A,'Sales receipt((當天)'!A5,'Sales receipt((當天)'!B:B,'Sales receipt((當天)'!B5)","v":0},{"$f":"SUMIFS('Sales receipt((當天)'!J:J,'Sales receipt((當天)'!A:A,'Sales receipt((當天)'!A5,'Sales receipt((當天)'!B:B,'Sales receipt((當天)'!B5)","v":0}]
[]
[null,"M0989 Susanna",null,"M2172 Janet",null,"M2801 Fanny",null,"M2798 Ryan",null,"M2902 Carmen",{"$nulls":3},"\tM1436 Khaki"]
[null,"Sales","Qty","Sales","Qty","Sales","Qty","Sales","Qty","Sales","Qty","Sales","Qty","Sales","Qty"]
["內衣類",{"$f":"SUMIFS('Sales receipt((當天)'!K:K,'Sales receipt((當天)'!A:A,'Sales receipt((當天)'!A2,'Sales receipt((當天)'!B:B,'Sales receipt((當天)'!B4,'Sales receipt((當天)'!C:C,'Sales receipt((當天)'!C2)","v":0},{"$f":"SUMIFS('Sales receipt((當天)'!J:J,'Sales receipt((當天)'!A:A,'Sales receipt((當天)'!A2,'Sales receipt((當天)'!B:B,'Sales receipt((當天)'!B4,'Sales receipt((當天)'!C:C,'Sales receipt((當天)'!C2)","v":0},{"$f":"SUMIFS('Sales receipt((當天)'!K:K,'Sales receipt((當天)'!A:A,'Sales receipt((當天)'!A3,'Sales receipt((當天)'!B:B,'Sales receipt((當天)'!B4,'Sales receipt((當天)'!C:C,'Sales receipt((當天)'!C2)","v":0},{"$f":"SUMIFS('Sales receipt((當天)'!J:J,'Sales receipt((當天)'!A:A,'Sales receipt((當天)'!A3,'Sales receipt((當天)'!B:B,'Sales receipt((當天)'!B4,'Sales receipt((當天)'!C:C,'Sales receipt((當天)'!C2)","v":0},{"$f":"SUMIFS('Sales receipt((當天)'!K:K,'Sales receipt((當天)'!A:A,'Sales receipt((當天)'!A7,'Sales receipt((當天)'!B:B,'Sales receipt((當天)'!B4,'Sales receipt((當天)'!C:C,'Sales receipt((當天)'!C2)","v":0},{"$f":"SUMIFS('Sales receipt((當天)'!J:J,'Sales receipt((當天)'!A:A,'Sales receipt((當天)'!A7,'Sales receipt((當天)'!B:B,'Sales receipt((當天)'!B4,'Sales receipt((當天)'!C:C,'Sales receipt((當天)'!C2)","v":0},{"$f":"SUMIFS('Sales receipt((當天)'!K:K,'Sales receipt((當天)'!A:A,'Sales receipt((當天)'!A6,'Sales receipt((當天)'!B:B,'Sales receipt((當天)'!B4,'Sales receipt((當天)'!C:C,'Sales receipt((當天)'!C2)","v":0},{"$f":"SUMIFS('Sales receipt((當天)'!J:J,'Sales receipt((當天)'!A:A,'Sales receipt((當天)'!A6,'Sales receipt((當天)'!B:B,'Sales receipt((當天)'!B4,'Sales receipt((當天)'!C:C,'Sales receipt((當天)'!C2)","v":0},{"$f":"SUMIFS('Sales receipt((當天)'!K:K,'Sales receipt((當天)'!A:A,'Sales receipt((當天)'!A8,'Sales receipt((當天)'!B:B,'Sales receipt((當天)'!B4,'Sales receipt((當天)'!C:C,'Sales receipt((當天)'!C2)","v":0},{"$f":"SUMIFS('Sales receipt((當天)'!J:J,'Sales receipt((當天)'!A:A,'Sales receipt((當天)'!A8,'Sales receipt((當天)'!B:B,'Sales receipt((當天)'!B4,'Sales receipt((當天)'!C:C,'Sales receipt((當天)'!C2)","v":0},{"$f":"SUMIFS('Sales receipt((當天)'!K:K,'Sales receipt((當天)'!A:A,'Sales receipt((當天)'!A4,'Sales receipt((當天)'!B:B,'Sales receipt((當天)'!B4,'Sales receipt((當天)'!C:C,'Sales receipt((當天)'!C2)","v":0},{"$f":"SUMIFS('Sales receipt((當天)'!J:J,'Sales receipt((當天)'!A:A,'Sales receipt((當天)'!A4,'Sales receipt((當天)'!B:B,'Sales receipt((當天)'!B4,'Sales receipt((當天)'!C:C,'Sales receipt((當天)'!C2)","v":0},{"$f":"SUMIFS('Sales receipt((當天)'!K:K,'Sales receipt((當天)'!A:A,'Sales receipt((當天)'!A5,'Sales receipt((當天)'!B:B,'Sales receipt((當天)'!B4,'Sales receipt((當天)'!C:C,'Sales receipt((當天)'!C2)","v":0},{"$f":"SUMIFS('Sales receipt((當天)'!J:J,'Sales receipt((當天)'!A:A,'Sales receipt((當天)'!A5,'Sales receipt((當天)'!B:B,'Sales receipt((當天)'!B4,'Sales receipt((當天)'!C:C,'Sales receipt((當天)'!C2)","v":0}]
["內搭",{"$f":"SUMIFS('Sales receipt((當天)'!K:K,'Sales receipt((當天)'!A:A,'Sales receipt((當天)'!A2,'Sales receipt((當天)'!B:B,'Sales receipt((當天)'!B4,'Sales receipt((當天)'!C:C,'Sales receipt((當天)'!C3)","v":0},{"$f":"SUMIFS('Sales receipt((當天)'!J:J,'Sales receipt((當天)'!A:A,'Sales receipt((當天)'!A2,'Sales receipt((當天)'!B:B,'Sales receipt((當天)'!B4,'Sales receipt((當天)'!C:C,'Sales receipt((當天)'!C3)","v":0},{"$f":"SUMIFS('Sales receipt((當天)'!K:K,'Sales receipt((當天)'!A:A,'Sales receipt((當天)'!A3,'Sales receipt((當天)'!B:B,'Sales receipt((當天)'!B4,'Sales receipt((當天)'!C:C,'Sales receipt((當天)'!C3)","v":0},{"$f":"SUMIFS('Sales receipt((當天)'!J:J,'Sales receipt((當天)'!A:A,'Sales receipt((當天)'!A3,'Sales receipt((當天)'!B:B,'Sales receipt((當天)'!B4,'Sales receipt((當天)'!C:C,'Sales receipt((當天)'!C3)","v":0},{"$f":"SUMIFS('Sales receipt((當天)'!K:K,'Sales receipt((當天)'!A:A,'Sales receipt((當天)'!A7,'Sales receipt((當天)'!B:B,'Sales receipt((當天)'!B4,'Sales receipt((當天)'!C:C,'Sales receipt((當天)'!C3)","v":0},{"$f":"SUMIFS('Sales receipt((當天)'!J:J,'Sales receipt((當天)'!A:A,'Sales receipt((當天)'!A7,'Sales receipt((當天)'!B:B,'Sales receipt((當天)'!B4,'Sales receipt((當天)'!C:C,'Sales receipt((當天)'!C3)","v":0},{"$f":"SUMIFS('Sales receipt((當天)'!K:K,'Sales receipt((當天)'!A:A,'Sales receipt((當天)'!A6,'Sales receipt((當天)'!B:B,'Sales receipt((當天)'!B4,'Sales receipt((當天)'!C:C,'Sales receipt((當天)'!C3)","v":0},{"$f":"SUMIFS('Sales receipt((當天)'!J:J,'Sales receipt((當天)'!A:A,'Sales receipt((當天)'!A6,'Sales receipt((當天)'!B:B,'Sales receipt((當天)'!B4,'Sales receipt((當天)'!C:C,'Sales receipt((當天)'!C3)","v":0},{"$f":"SUMIFS('Sales receipt((當天)'!K:K,'Sales receipt((當天)'!A:A,'Sales receipt((當天)'!A8,'Sales receipt((當天)'!B:B,'Sales receipt((當天)'!B4,'Sales receipt((當天)'!C:C,'Sales receipt((當天)'!C3)","v":0},{"$f":"SUMIFS('Sales receipt((當天)'!J:J,'Sales receipt((當天)'!A:A,'Sales receipt((當天)'!A8,'Sales receipt((當天)'!B:B,'Sales receipt((當天)'!B4,'Sales receipt((當天)'!C:C,'Sales receipt((當天)'!C3)","v":0},{"$f":"SUMIFS('Sales receipt((當天)'!K:K,'Sales receipt((當天)'!A:A,'Sales receipt((當天)'!A4,'Sales receipt((當天)'!B:B,'Sales receipt((當天)'!B4,'Sales receipt((當天)'!C:C,'Sales receipt((當天)'!C3)","v":0},{"$f":"SUMIFS('Sales receipt((當天)'!J:J,'Sales receipt((當天)'!A:A,'Sales receipt((當天)'!A4,'Sales receipt((當天)'!B:B,'Sales receipt((當天)'!B4,'Sales receipt((當天)'!C:C,'Sales receipt((當天)'!C3)","v":0},{"$f":"SUMIFS('Sales receipt((當天)'!K:K,'Sales receipt((當天)'!A:A,'Sales receipt((當天)'!A5,'Sales receipt((當天)'!B:B,'Sales receipt((當天)'!B4,'Sales receipt((當天)'!C:C,'Sales receipt((當天)'!C3)","v":0},{"$f":"SUMIFS('Sales receipt((當天)'!J:J,'Sales receipt((當天)'!A:A,'Sales receipt((當天)'!A5,'Sales receipt((當天)'!B:B,'Sales receipt((當天)'!B4,'Sales receipt((當天)'!C:C,'Sales receipt((當天)'!C3)","v":0}]
["編織衫",{"$f":"SUMIFS('Sales receipt((當天)'!K:K,'Sales receipt((當天)'!A:A,'Sales receipt((當天)'!A2,'Sales receipt((當天)'!B:B,'Sales receipt((當天)'!B4,'Sales receipt((當天)'!C:C,'Sales receipt((當天)'!C13)","v":0},{"$f":"SUMIFS('Sales receipt((當天)'!J:J,'Sales receipt((當天)'!A:A,'Sales receipt((當天)'!A2,'Sales receipt((當天)'!B:B,'Sales receipt((當天)'!B4,'Sales receipt((當天)'!C:C,'Sales receipt((當天)'!C13)","v":0},{"$f":"SUMIFS('Sales receipt((當天)'!K:K,'Sales receipt((當天)'!A:A,'Sales receipt((當天)'!A3,'Sales receipt((當天)'!B:B,'Sales receipt((當天)'!B4,'Sales receipt((當天)'!C:C,'Sales receipt((當天)'!C13)","v":0},{"$f":"SUMIFS('Sales receipt((當天)'!J:J,'Sales receipt((當天)'!A:A,'Sales receipt((當天)'!A3,'Sales receipt((當天)'!B:B,'Sales receipt((當天)'!B4,'Sales receipt((當天)'!C:C,'Sales receipt((當天)'!C13)","v":0},{"$f":"SUMIFS('Sales receipt((當天)'!K:K,'Sales receipt((當天)'!A:A,'Sales receipt((當天)'!A7,'Sales receipt((當天)'!B:B,'Sales receipt((當天)'!B4,'Sales receipt((當天)'!C:C,'Sales receipt((當天)'!C13)","v":0},{"$f":"SUMIFS('Sales receipt((當天)'!J:J,'Sales receipt((當天)'!A:A,'Sales receipt((當天)'!A7,'Sales receipt((當天)'!B:B,'Sales receipt((當天)'!B4,'Sales receipt((當天)'!C:C,'Sales receipt((當天)'!C13)","v":0},{"$f":"SUMIFS('Sales receipt((當天)'!K:K,'Sales receipt((當天)'!A:A,'Sales receipt((當天)'!A6,'Sales receipt((當天)'!B:B,'Sales receipt((當天)'!B4,'Sales receipt((當天)'!C:C,'Sales receipt((當天)'!C13)","v":0},{"$f":"SUMIFS('Sales receipt((當天)'!J:J,'Sales receipt((當天)'!A:A,'Sales receipt((當天)'!A6,'Sales receipt((當天)'!B:B,'Sales receipt((當天)'!B4,'Sales receipt((當天)'!C:C,'Sales receipt((當天)'!C13)","v":0},{"$f":"SUMIFS('Sales receipt((當天)'!K:K,'Sales receipt((當天)'!A:A,'Sales receipt((當天)'!A8,'Sales receipt((當天)'!B:B,'Sales receipt((當天)'!B4,'Sales receipt((當天)'!C:C,'Sales receipt((當天)'!C13)","v":0},{"$f":"SUMIFS('Sales receipt((當天)'!J:J,'Sales receipt((當天)'!A:A,'Sales receipt((當天)'!A8,'Sales receipt((當天)'!B:B,'Sales receipt((當天)'!B4,'Sales receipt((當天)'!C:C,'Sales receipt((當天)'!C13)","v":0},{"$f":"SUMIFS('Sales receipt((當天)'!K:K,'Sales receipt((當天)'!A:A,'Sales receipt((當天)'!A4,'Sales receipt((當天)'!B:B,'Sales receipt((當天)'!B4,'Sales receipt((當天)'!C:C,'Sales receipt((當天)'!C13)","v":0},{"$f":"SUMIFS('Sales receipt((當天)'!J:J,'Sales receipt((當天)'!A:A,'Sales receipt((當天)'!A4,'Sales receipt((當天)'!B:B,'Sales receipt((當天)'!B4,'Sales receipt((當天)'!C:C,'Sales receipt((當天)'!C13)","v":0},{"$f":"SUMIFS('Sales receipt((當天)'!K:K,'Sales receipt((當天)'!A:A,'Sales receipt((當天)'!A5,'Sales receipt((當天)'!B:B,'Sales receipt((當天)'!B4,'Sales receipt((當天)'!C:C,'Sales receipt((當天)'!C13)","v":0},{"$f":"SUMIFS('Sales receipt((當天)'!J:J,'Sales receipt((當天)'!A:A,'Sales receipt((當天)'!A5,'Sales receipt((當天)'!B:B,'Sales receipt((當天)'!B4,'Sales receipt((當天)'!C:C,'Sales receipt((當天)'!C13)","v":0}]
["襯衫",{"$f":"SUMIFS('Sales receipt((當天)'!K:K,'Sales receipt((當天)'!A:A,'Sales receipt((當天)'!A2,'Sales receipt((當天)'!B:B,'Sales receipt((當天)'!B4,'Sales receipt((當天)'!C:C,'Sales receipt((當天)'!C14)","v":0},{"$f":"SUMIFS('Sales receipt((當天)'!J:J,'Sales receipt((當天)'!A:A,'Sales receipt((當天)'!A2,'Sales receipt((當天)'!B:B,'Sales receipt((當天)'!B4,'Sales receipt((當天)'!C:C,'Sales receipt((當天)'!C14)","v":0},{"$f":"SUMIFS('Sales receipt((當天)'!K:K,'Sales receipt((當天)'!A:A,'Sales receipt((當天)'!A3,'Sales receipt((當天)'!B:B,'Sales receipt((當天)'!B4,'Sales receipt((當天)'!C:C,'Sales receipt((當天)'!C14)","v":0},{"$f":"SUMIFS('Sales receipt((當天)'!J:J,'Sales receipt((當天)'!A:A,'Sales receipt((當天)'!A3,'Sales receipt((當天)'!B:B,'Sales receipt((當天)'!B4,'Sales receipt((當天)'!C:C,'Sales receipt((當天)'!C14)","v":0},{"$f":"SUMIFS('Sales receipt((當天)'!K:K,'Sales receipt((當天)'!A:A,'Sales receipt((當天)'!A7,'Sales receipt((當天)'!B:B,'Sales receipt((當天)'!B4,'Sales receipt((當天)'!C:C,'Sales receipt((當天)'!C14)","v":0},{"$f":"SUMIFS('Sales receipt((當天)'!J:J,'Sales receipt((當天)'!A:A,'Sales receipt((當天)'!A7,'Sales receipt((當天)'!B:B,'Sales receipt((當天)'!B4,'Sales receipt((當天)'!C:C,'Sales receipt((當天)'!C14)","v":0},{"$f":"SUMIFS('Sales receipt((當天)'!K:K,'Sales receipt((當天)'!A:A,'Sales receipt((當天)'!A6,'Sales receipt((當天)'!B:B,'Sales receipt((當天)'!B4,'Sales receipt((當天)'!C:C,'Sales receipt((當天)'!C14)","v":0},{"$f":"SUMIFS('Sales receipt((當天)'!J:J,'Sales receipt((當天)'!A:A,'Sales receipt((當天)'!A6,'Sales receipt((當天)'!B:B,'Sales receipt((當天)'!B4,'Sales receipt((當天)'!C:C,'Sales receipt((當天)'!C14)","v":0},{"$f":"SUMIFS('Sales receipt((當天)'!K:K,'Sales receipt((當天)'!A:A,'Sales receipt((當天)'!A8,'Sales receipt((當天)'!B:B,'Sales receipt((當天)'!B4,'Sales receipt((當天)'!C:C,'Sales receipt((當天)'!C14)","v":0},{"$f":"SUMIFS('Sales receipt((當天)'!J:J,'Sales receipt((當天)'!A:A,'Sales receipt((當天)'!A8,'Sales receipt((當天)'!B:B,'Sales receipt((當天)'!B4,'Sales receipt((當天)'!C:C,'Sales receipt((當天)'!C14)","v":0},{"$f":"SUMIFS('Sales receipt((當天)'!K:K,'Sales receipt((當天)'!A:A,'Sales receipt((當天)'!A4,'Sales receipt((當天)'!B:B,'Sales receipt((當天)'!B4,'Sales receipt((當天)'!C:C,'Sales receipt((當天)'!C14)","v":0},{"$f":"SUMIFS('Sales receipt((當天)'!J:J,'Sales receipt((當天)'!A:A,'Sales receipt((當天)'!A4,'Sales receipt((當天)'!B:B,'Sales receipt((當天)'!B4,'Sales receipt((當天)'!C:C,'Sales receipt((當天)'!C14)","v":0},{"$f":"SUMIFS('Sales receipt((當天)'!K:K,'Sales receipt((當天)'!A:A,'Sales receipt((當天)'!A5,'Sales receipt((當天)'!B:B,'Sales receipt((當天)'!B4,'Sales receipt((當天)'!C:C,'Sales receipt((當天)'!C14)","v":0},{"$f":"SUMIFS('Sales receipt((當天)'!J:J,'Sales receipt((當天)'!A:A,'Sales receipt((當天)'!A5,'Sales receipt((當天)'!B:B,'Sales receipt((當天)'!B4,'Sales receipt((當天)'!C:C,'Sales receipt((當天)'!C14)","v":0}]
["短T類",{"$f":"SUMIFS('Sales receipt((當天)'!K:K,'Sales receipt((當天)'!A:A,'Sales receipt((當天)'!A2,'Sales receipt((當天)'!B:B,'Sales receipt((當天)'!B4,'Sales receipt((當天)'!C:C,'Sales receipt((當天)'!C10)","v":0},{"$f":"SUMIFS('Sales receipt((當天)'!J:J,'Sales receipt((當天)'!A:A,'Sales receipt((當天)'!A2,'Sales receipt((當天)'!B:B,'Sales receipt((當天)'!B4,'Sales receipt((當天)'!C:C,'Sales receipt((當天)'!C10)","v":0},{"$f":"SUMIFS('Sales receipt((當天)'!K:K,'Sales receipt((當天)'!A:A,'Sales receipt((當天)'!A3,'Sales receipt((當天)'!B:B,'Sales receipt((當天)'!B4,'Sales receipt((當天)'!C:C,'Sales receipt((當天)'!C10)","v":0},{"$f":"SUMIFS('Sales receipt((當天)'!J:J,'Sales receipt((當天)'!A:A,'Sales receipt((當天)'!A3,'Sales receipt((當天)'!B:B,'Sales receipt((當天)'!B4,'Sales receipt((當天)'!C:C,'Sales receipt((當天)'!C10)","v":0},{"$f":"SUMIFS('Sales receipt((當天)'!K:K,'Sales receipt((當天)'!A:A,'Sales receipt((當天)'!A7,'Sales receipt((當天)'!B:B,'Sales receipt((當天)'!B4,'Sales receipt((當天)'!C:C,'Sales receipt((當天)'!C10)","v":0},{"$f":"SUMIFS('Sales receipt((當天)'!J:J,'Sales receipt((當天)'!A:A,'Sales receipt((當天)'!A7,'Sales receipt((當天)'!B:B,'Sales receipt((當天)'!B4,'Sales receipt((當天)'!C:C,'Sales receipt((當天)'!C10)","v":0},{"$f":"SUMIFS('Sales receipt((當天)'!K:K,'Sales receipt((當天)'!A:A,'Sales receipt((當天)'!A6,'Sales receipt((當天)'!B:B,'Sales receipt((當天)'!B4,'Sales receipt((當天)'!C:C,'Sales receipt((當天)'!C10)","v":0},{"$f":"SUMIFS('Sales receipt((當天)'!J:J,'Sales receipt((當天)'!A:A,'Sales receipt((當天)'!A6,'Sales receipt((當天)'!B:B,'Sales receipt((當天)'!B4,'Sales receipt((當天)'!C:C,'Sales receipt((當天)'!C10)","v":0},{"$f":"SUMIFS('Sales receipt((當天)'!K:K,'Sales receipt((當天)'!A:A,'Sales receipt((當天)'!A8,'Sales receipt((當天)'!B:B,'Sales receipt((當天)'!B4,'Sales receipt((當天)'!C:C,'Sales receipt((當天)'!C10)","v":0},{"$f":"SUMIFS('Sales receipt((當天)'!J:J,'Sales receipt((當天)'!A:A,'Sales receipt((當天)'!A8,'Sales receipt((當天)'!B:B,'Sales receipt((當天)'!B4,'Sales receipt((當天)'!C:C,'Sales receipt((當天)'!C10)","v":0},{"$f":"SUMIFS('Sales receipt((當天)'!K:K,'Sales receipt((當天)'!A:A,'Sales receipt((當天)'!A4,'Sales receipt((當天)'!B:B,'Sales receipt((當天)'!B4,'Sales receipt((當天)'!C:C,'Sales receipt((當天)'!C10)","v":0},{"$f":"SUMIFS('Sales receipt((當天)'!J:J,'Sales receipt((當天)'!A:A,'Sales receipt((當天)'!A4,'Sales receipt((當天)'!B:B,'Sales receipt((當天)'!B4,'Sales receipt((當天)'!C:C,'Sales receipt((當天)'!C10)","v":0},{"$f":"SUMIFS('Sales receipt((當天)'!K:K,'Sales receipt((當天)'!A:A,'Sales receipt((當天)'!A5,'Sales receipt((當天)'!B:B,'Sales receipt((當天)'!B4,'Sales receipt((當天)'!C:C,'Sales receipt((當天)'!C10)","v":0},{"$f":"SUMIFS('Sales receipt((當天)'!J:J,'Sales receipt((當天)'!A:A,'Sales receipt((當天)'!A5,'Sales receipt((當天)'!B:B,'Sales receipt((當天)'!B4,'Sales receipt((當天)'!C:C,'Sales receipt((當天)'!C10)","v":0}]
["外套",{"$f":"SUM(SUMIFS('Sales receipt((當天)'!K:K,'Sales receipt((當天)'!A:A,'Sales receipt((當天)'!A2,'Sales receipt((當天)'!B:B,'Sales receipt((當天)'!B4,'Sales receipt((當天)'!C:C,{\"針織上衣\",\"梭織上衣\"}))","v":0},{"$f":"SUM(SUMIFS('Sales receipt((當天)'!J:J,'Sales receipt((當天)'!A:A,'Sales receipt((當天)'!A2,'Sales receipt((當天)'!B:B,'Sales receipt((當天)'!B4,'Sales receipt((當天)'!C:C,{\"針織上衣\",\"梭織上衣\"}))","v":0},{"$f":"SUM(SUMIFS('Sales receipt((當天)'!K:K,'Sales receipt((當天)'!A:A,'Sales receipt((當天)'!A3,'Sales receipt((當天)'!B:B,'Sales receipt((當天)'!B4,'Sales receipt((當天)'!C:C,{\"針織上衣\",\"梭織上衣\"}))","v":0},{"$f":"SUM(SUMIFS('Sales receipt((當天)'!J:J,'Sales receipt((當天)'!A:A,'Sales receipt((當天)'!A3,'Sales receipt((當天)'!B:B,'Sales receipt((當天)'!B4,'Sales receipt((當天)'!C:C,{\"針織上衣\",\"梭織上衣\"}))","v":0},{"$f":"SUM(SUMIFS('Sales receipt((當天)'!K:K,'Sales receipt((當天)'!A:A,'Sales receipt((當天)'!A7,'Sales receipt((當天)'!B:B,'Sales receipt((當天)'!B4,'Sales receipt((當天)'!C:C,{\"針織上衣\",\"梭織上衣\"}))","v":0},{"$f":"SUM(SUMIFS('Sales receipt((當天)'!J:J,'Sales receipt((當天)'!A:A,'Sales receipt((當天)'!A7,'Sales receipt((當天)'!B:B,'Sales receipt((當天)'!B4,'Sales receipt((當天)'!C:C,{\"針織上衣\",\"梭織上衣\"}))","v":0},{"$f":"SUM(SUMIFS('Sales receipt((當天)'!K:K,'Sales receipt((當天)'!A:A,'Sales receipt((當天)'!A6,'Sales receipt((當天)'!B:B,'Sales receipt((當天)'!B4,'Sales receipt((當天)'!C:C,{\"針織上衣\",\"梭織上衣\"}))","v":0},{"$f":"SUM(SUMIFS('Sales receipt((當天)'!J:J,'Sales receipt((當天)'!A:A,'Sales receipt((當天)'!A6,'Sales receipt((當天)'!B:B,'Sales receipt((當天)'!B4,'Sales receipt((當天)'!C:C,{\"針織上衣\",\"梭織上衣\"}))","v":0},{"$f":"SUM(SUMIFS('Sales receipt((當天)'!K:K,'Sales receipt((當天)'!A:A,'Sales receipt((當天)'!A8,'Sales receipt((當天)'!B:B,'Sales receipt((當天)'!B4,'Sales receipt((當天)'!C:C,{\"針織上衣\",\"梭織上衣\"}))","v":0},{"$f":"SUM(SUMIFS('Sales receipt((當天)'!J:J,'Sales receipt((當天)'!A:A,'Sales receipt((當天)'!A8,'Sales receipt((當天)'!B:B,'Sales receipt((當天)'!B4,'Sales receipt((當天)'!C:C,{\"針織上衣\",\"梭織上衣\"}))","v":0},{"$f":"SUM(SUMIFS('Sales receipt((當天)'!K:K,'Sales receipt((當天)'!A:A,'Sales receipt((當天)'!A4,'Sales receipt((當天)'!B:B,'Sales receipt((當天)'!B4,'Sales receipt((當天)'!C:C,{\"針織上衣\",\"梭織上衣\"}))","v":0},{"$f":"SUM(SUMIFS('Sales receipt((當天)'!J:J,'Sales receipt((當天)'!A:A,'Sales receipt((當天)'!A4,'Sales receipt((當天)'!B:B,'Sales receipt((當天)'!B4,'Sales receipt((當天)'!C:C,{\"針織上衣\",\"梭織上衣\"}))","v":0},{"$f":"SUM(SUMIFS('Sales receipt((當天)'!K:K,'Sales receipt((當天)'!A:A,'Sales receipt((當天)'!A5,'Sales receipt((當天)'!B:B,'Sales receipt((當天)'!B4,'Sales receipt((當天)'!C:C,{\"針織上衣\",\"梭織上衣\"}))","v":0},{"$f":"SUM(SUMIFS('Sales receipt((當天)'!J:J,'Sales receipt((當天)'!A:A,'Sales receipt((當天)'!A5,'Sales receipt((當天)'!B:B,'Sales receipt((當天)'!B4,'Sales receipt((當天)'!C:C,{\"針織上衣\",\"梭織上衣\"}))","v":0}]
["羽絨服",{"$f":"SUM(SUMIFS('Sales receipt((當天)'!K:K,'Sales receipt((當天)'!A:A,'Sales receipt((當天)'!A2,'Sales receipt((當天)'!B:B,'Sales receipt((當天)'!B4,'Sales receipt((當天)'!C:C,{\"滑雪服\",\"羽絨服\",\"棉服\"}))","v":0},{"$f":"SUM(SUMIFS('Sales receipt((當天)'!J:J,'Sales receipt((當天)'!A:A,'Sales receipt((當天)'!A2,'Sales receipt((當天)'!B:B,'Sales receipt((當天)'!B4,'Sales receipt((當天)'!C:C,{\"滑雪服\",\"羽絨服\",\"棉服\"}))","v":0},{"$f":"SUM(SUMIFS('Sales receipt((當天)'!K:K,'Sales receipt((當天)'!A:A,'Sales receipt((當天)'!A3,'Sales receipt((當天)'!B:B,'Sales receipt((當天)'!B4,'Sales receipt((當天)'!C:C,{\"滑雪服\",\"羽絨服\",\"棉服\"}))","v":0},{"$f":"SUM(SUMIFS('Sales receipt((當天)'!J:J,'Sales receipt((當天)'!A:A,'Sales receipt((當天)'!A3,'Sales receipt((當天)'!B:B,'Sales receipt((當天)'!B4,'Sales receipt((當天)'!C:C,{\"滑雪服\",\"羽絨服\",\"棉服\"}))","v":0},{"$f":"SUM(SUMIFS('Sales receipt((當天)'!K:K,'Sales receipt((當天)'!A:A,'Sales receipt((當天)'!A7,'Sales receipt((當天)'!B:B,'Sales receipt((當天)'!B4,'Sales receipt((當天)'!C:C,{\"滑雪服\",\"羽絨服\",\"棉服\"}))","v":0},{"$f":"SUM(SUMIFS('Sales receipt((當天)'!J:J,'Sales receipt((當天)'!A:A,'Sales receipt((當天)'!A7,'Sales receipt((當天)'!B:B,'Sales receipt((當天)'!B4,'Sales receipt((當天)'!C:C,{\"滑雪服\",\"羽絨服\",\"棉服\"}))","v":0},{"$f":"SUM(SUMIFS('Sales receipt((當天)'!K:K,'Sales receipt((當天)'!A:A,'Sales receipt((當天)'!A6,'Sales receipt((當天)'!B:B,'Sales receipt((當天)'!B4,'Sales receipt((當天)'!C:C,{\"滑雪服\",\"羽絨服\",\"棉服\"}))","v":0},{"$f":"SUM(SUMIFS('Sales receipt((當天)'!J:J,'Sales receipt((當天)'!A:A,'Sales receipt((當天)'!A6,'Sales receipt((當天)'!B:B,'Sales receipt((當天)'!B4,'Sales receipt((當天)'!C:C,{\"滑雪服\",\"羽絨服\",\"棉服\"}))","v":0},{"$f":"SUM(SUMIFS('Sales receipt((當天)'!K:K,'Sales receipt((當天)'!A:A,'Sales receipt((當天)'!A8,'Sales receipt((當天)'!B:B,'Sales receipt((當天)'!B4,'Sales receipt((當天)'!C:C,{\"滑雪服\",\"羽絨服\",\"棉服\"}))","v":0},{"$f":"SUM(SUMIFS('Sales receipt((當天)'!J:J,'Sales receipt((當天)'!A:A,'Sales receipt((當天)'!A8,'Sales receipt((當天)'!B:B,'Sales receipt((當天)'!B4,'Sales receipt((當天)'!C:C,{\"滑雪服\",\"羽絨服\",\"棉服\"}))","v":0},{"$f":"SUM(SUMIFS('Sales receipt((當天)'!K:K,'Sales receipt((當天)'!A:A,'Sales receipt((當天)'!A4,'Sales receipt((當天)'!B:B,'Sales receipt((當天)'!B4,'Sales receipt((當天)'!C:C,{\"滑雪服\",\"羽絨服\",\"棉服\"}))","v":0},{"$f":"SUM(SUMIFS('Sales receipt((當天)'!J:J,'Sales receipt((當天)'!A:A,'Sales receipt((當天)'!A4,'Sales receipt((當天)'!B:B,'Sales receipt((當天)'!B4,'Sales receipt((當天)'!C:C,{\"滑雪服\",\"羽絨服\",\"棉服\"}))","v":0},{"$f":"SUM(SUMIFS('Sales receipt((當天)'!K:K,'Sales receipt((當天)'!A:A,'Sales receipt((當天)'!A5,'Sales receipt((當天)'!B:B,'Sales receipt((當天)'!B4,'Sales receipt((當天)'!C:C,{\"滑雪服\",\"羽絨服\",\"棉服\"}))","v":0},{"$f":"SUM(SUMIFS('Sales receipt((當天)'!J:J,'Sales receipt((當天)'!A:A,'Sales receipt((當天)'!A5,'Sales receipt((當天)'!B:B,'Sales receipt((當天)'!B4,'Sales receipt((當天)'!C:C,{\"滑雪服\",\"羽絨服\",\"棉服\"}))","v":0}]
["上身",{"$f":"SUM(B64:B70)","v":0},0,0,0,0,0,0,0,0,0,0,0,0,0]
["褲類",{"$f":"SUM(SUMIFS('Sales receipt((當天)'!K:K,'Sales receipt((當天)'!A:A,'Sales receipt((當天)'!A2,'Sales receipt((當天)'!B:B,'Sales receipt((當天)'!B4,'Sales receipt((當天)'!C:C,{\"針織褲\",\"梭織褲\"}))","v":0},{"$f":"SUM(SUMIFS('Sales receipt((當天)'!J:J,'Sales receipt((當天)'!A:A,'Sales receipt((當天)'!A2,'Sales receipt((當天)'!B:B,'Sales receipt((當天)'!B4,'Sales receipt((當天)'!C:C,{\"針織褲\",\"梭織褲\"}))","v":0},{"$f":"SUM(SUMIFS('Sales receipt((當天)'!K:K,'Sales receipt((當天)'!A:A,'Sales receipt((當天)'!A3,'Sales receipt((當天)'!B:B,'Sales receipt((當天)'!B4,'Sales receipt((當天)'!C:C,{\"針織褲\",\"梭織褲\"}))","v":0},{"$f":"SUM(SUMIFS('Sales receipt((當天)'!J:J,'Sales receipt((當天)'!A:A,'Sales receipt((當天)'!A3,'Sales receipt((當天)'!B:B,'Sales receipt((當天)'!B4,'Sales receipt((當天)'!C:C,{\"針織褲\",\"梭織褲\"}))","v":0},{"$f":"SUM(SUMIFS('Sales receipt((當天)'!K:K,'Sales receipt((當天)'!A:A,'Sales receipt((當天)'!A7,'Sales receipt((當天)'!B:B,'Sales receipt((當天)'!B4,'Sales receipt((當天)'!C:C,{\"針織褲\",\"梭織褲\"}))","v":0},{"$f":"SUM(SUMIFS('Sales receipt((當天)'!J:J,'Sales receipt((當天)'!A:A,'Sales receipt((當天)'!A7,'Sales receipt((當天)'!B:B,'Sales receipt((當天)'!B4,'Sales receipt((當天)'!C:C,{\"針織褲\",\"梭織褲\"}))","v":0},{"$f":"SUM(SUMIFS('Sales receipt((當天)'!K:K,'Sales receipt((當天)'!A:A,'Sales receipt((當天)'!A6,'Sales receipt((當天)'!B:B,'Sales receipt((當天)'!B4,'Sales receipt((當天)'!C:C,{\"針織褲\",\"梭織褲\"}))","v":0},{"$f":"SUM(SUMIFS('Sales receipt((當天)'!J:J,'Sales receipt((當天)'!A:A,'Sales receipt((當天)'!A6,'Sales receipt((當天)'!B:B,'Sales receipt((當天)'!B4,'Sales receipt((當天)'!C:C,{\"針織褲\",\"梭織褲\"}))","v":0},{"$f":"SUM(SUMIFS('Sales receipt((當天)'!K:K,'Sales receipt((當天)'!A:A,'Sales receipt((當天)'!A8,'Sales receipt((當天)'!B:B,'Sales receipt((當天)'!B4,'Sales receipt((當天)'!C:C,{\"針織褲\",\"梭織褲\"}))","v":0},{"$f":"SUM(SUMIFS('Sales receipt((當天)'!J:J,'Sales receipt((當天)'!A:A,'Sales receipt((當天)'!A8,'Sales receipt((當天)'!B:B,'Sales receipt((當天)'!B4,'Sales receipt((當天)'!C:C,{\"針織褲\",\"梭織褲\"}))","v":0},{"$f":"SUM(SUMIFS('Sales receipt((當天)'!K:K,'Sales receipt((當天)'!A:A,'Sales receipt((當天)'!A4,'Sales receipt((當天)'!B:B,'Sales receipt((當天)'!B4,'Sales receipt((當天)'!C:C,{\"針織褲\",\"梭織褲\"}))","v":0},{"$f":"SUM(SUMIFS('Sales receipt((當天)'!J:J,'Sales receipt((當天)'!A:A,'Sales receipt((當天)'!A4,'Sales receipt((當天)'!B:B,'Sales receipt((當天)'!B4,'Sales receipt((當天)'!C:C,{\"針織褲\",\"梭織褲\"}))","v":0},{"$f":"SUM(SUMIFS('Sales receipt((當天)'!K:K,'Sales receipt((當天)'!A:A,'Sales receipt((當天)'!A5,'Sales receipt((當天)'!B:B,'Sales receipt((當天)'!B4,'Sales receipt((當天)'!C:C,{\"針織褲\",\"梭織褲\"}))","v":0},{"$f":"SUM(SUMIFS('Sales receipt((當天)'!J:J,'Sales receipt((當天)'!A:A,'Sales receipt((當天)'!A5,'Sales receipt((當天)'!B:B,'Sales receipt((當天)'!B4,'Sales receipt((當天)'!C:C,{\"針織褲\",\"梭織褲\"}))","v":0}]
["裙類",{"$f":"SUMIFS('Sales receipt((當天)'!K:K,'Sales receipt((當天)'!A:A,'Sales receipt((當天)'!A2,'Sales receipt((當天)'!B:B,'Sales receipt((當天)'!B4,'Sales receipt((當天)'!C:C,'Sales receipt((當天)'!C12)","v":0},{"$f":"SUMIFS('Sales receipt((當天)'!J:J,'Sales receipt((當天)'!A:A,'Sales receipt((當天)'!A2,'Sales receipt((當天)'!B:B,'Sales receipt((當天)'!B4,'Sales receipt((當天)'!C:C,'Sales receipt((當天)'!C12)","v":0},{"$f":"SUMIFS('Sales receipt((當天)'!K:K,'Sales receipt((當天)'!A:A,'Sales receipt((當天)'!A3,'Sales receipt((當天)'!B:B,'Sales receipt((當天)'!B4,'Sales receipt((當天)'!C:C,'Sales receipt((當天)'!C12)","v":0},{"$f":"SUMIFS('Sales receipt((當天)'!J:J,'Sales receipt((當天)'!A:A,'Sales receipt((當天)'!A3,'Sales receipt((當天)'!B:B,'Sales receipt((當天)'!B4,'Sales receipt((當天)'!C:C,'Sales receipt((當天)'!C12)","v":0},{"$f":"SUMIFS('Sales receipt((當天)'!K:K,'Sales receipt((當天)'!A:A,'Sales receipt((當天)'!A7,'Sales receipt((當天)'!B:B,'Sales receipt((當天)'!B4,'Sales receipt((當天)'!C:C,'Sales receipt((當天)'!C12)","v":0},{"$f":"SUMIFS('Sales receipt((當天)'!J:J,'Sales receipt((當天)'!A:A,'Sales receipt((當天)'!A7,'Sales receipt((當天)'!B:B,'Sales receipt((當天)'!B4,'Sales receipt((當天)'!C:C,'Sales receipt((當天)'!C12)","v":0},{"$f":"SUMIFS('Sales receipt((當天)'!K:K,'Sales receipt((當天)'!A:A,'Sales receipt((當天)'!A6,'Sales receipt((當天)'!B:B,'Sales receipt((當天)'!B4,'Sales receipt((當天)'!C:C,'Sales receipt((當天)'!C12)","v":0},{"$f":"SUMIFS('Sales receipt((當天)'!J:J,'Sales receipt((當天)'!A:A,'Sales receipt((當天)'!A6,'Sales receipt((當天)'!B:B,'Sales receipt((當天)'!B4,'Sales receipt((當天)'!C:C,'Sales receipt((當天)'!C12)","v":0},{"$f":"SUMIFS('Sales receipt((當天)'!K:K,'Sales receipt((當天)'!A:A,'Sales receipt((當天)'!A8,'Sales receipt((當天)'!B:B,'Sales receipt((當天)'!B4,'Sales receipt((當天)'!C:C,'Sales receipt((當天)'!C12)","v":0},{"$f":"SUMIFS('Sales receipt((當天)'!J:J,'Sales receipt((當天)'!A:A,'Sales receipt((當天)'!A8,'Sales receipt((當天)'!B:B,'Sales receipt((當天)'!B4,'Sales receipt((當天)'!C:C,'Sales receipt((當天)'!C12)","v":0},{"$f":"SUMIFS('Sales receipt((當天)'!K:K,'Sales receipt((當天)'!A:A,'Sales receipt((當天)'!A4,'Sales receipt((當天)'!B:B,'Sales receipt((當天)'!B4,'Sales receipt((當天)'!C:C,'Sales receipt((當天)'!C12)","v":0},{"$f":"SUMIFS('Sales receipt((當天)'!J:J,'Sales receipt((當天)'!A:A,'Sales receipt((當天)'!A4,'Sales receipt((當天)'!B:B,'Sales receipt((當天)'!B4,'Sales receipt((當天)'!C:C,'Sales receipt((當天)'!C12)","v":0},{"$f":"SUMIFS('Sales receipt((當天)'!K:K,'Sales receipt((當天)'!A:A,'Sales receipt((當天)'!A5,'Sales receipt((當天)'!B:B,'Sales receipt((當天)'!B4,'Sales receipt((當天)'!C:C,'Sales receipt((當天)'!C12)","v":0},{"$f":"SUMIFS('Sales receipt((當天)'!J:J,'Sales receipt((當天)'!A:A,'Sales receipt((當天)'!A5,'Sales receipt((當天)'!B:B,'Sales receipt((當天)'!B4,'Sales receipt((當天)'!C:C,'Sales receipt((當天)'!C12)","v":0}]
["下身",{"$f":"SUM(B72:B73)","v":0},0,0,0,0,0,0,0,0,0,0,0,0,0]
["鞋",{"$f":"SUMIFS('Sales receipt((當天)'!K:K,'Sales receipt((當天)'!A:A,'Sales receipt((當天)'!A2,'Sales receipt((當天)'!B:B,'Sales receipt((當天)'!B6)","v":0},{"$f":"SUMIFS('Sales receipt((當天)'!J:J,'Sales receipt((當天)'!A:A,'Sales receipt((當天)'!A2,'Sales receipt((當天)'!B:B,'Sales receipt((當天)'!B6)","v":0},{"$f":"SUMIFS('Sales receipt((當天)'!K:K,'Sales receipt((當天)'!A:A,'Sales receipt((當天)'!A3,'Sales receipt((當天)'!B:B,'Sales receipt((當天)'!B6)","v":0},{"$f":"SUMIFS('Sales receipt((當天)'!J:J,'Sales receipt((當天)'!A:A,'Sales receipt((當天)'!A3,'Sales receipt((當天)'!B:B,'Sales receipt((當天)'!B6)","v":0},{"$f":"SUMIFS('Sales receipt((當天)'!K:K,'Sales receipt((當天)'!A:A,'Sales receipt((當天)'!A7,'Sales receipt((當天)'!B:B,'Sales receipt((當天)'!B6)","v":0},{"$f":"SUMIFS('Sales receipt((當天)'!J:J,'Sales receipt((當天)'!A:A,'Sales receipt((當天)'!A7,'Sales receipt((當天)'!B:B,'Sales receipt((當天)'!B6)","v":0},{"$f":"SUMIFS('Sales receipt((當天)'!K:K,'Sales receipt((當天)'!A:A,'Sales receipt((當天)'!A6,'Sales receipt((當天)'!B:B,'Sales receipt((當天)'!B6)","v":0},{"$f":"SUMIFS('Sales receipt((當天)'!J:J,'Sales receipt((當天)'!A:A,'Sales receipt((當天)'!A6,'Sales receipt((當天)'!B:B,'Sales receipt((當天)'!B6)","v":0},{"$f":"SUMIFS('Sales receipt((當天)'!K:K,'Sales receipt((當天)'!A:A,'Sales receipt((當天)'!A8,'Sales receipt((當天)'!B:B,'Sales receipt((當天)'!B6)","v":0},{"$f":"SUMIFS('Sales receipt((當天)'!J:J,'Sales receipt((當天)'!A:A,'Sales receipt((當天)'!A8,'Sales receipt((當天)'!B:B,'Sales receipt((當天)'!B6)","v":0},{"$f":"SUMIFS('Sales receipt((當天)'!K:K,'Sales receipt((當天)'!A:A,'Sales receipt((當天)'!A4,'Sales receipt((當天)'!B:B,'Sales receipt((當天)'!B6)","v":0},{"$f":"SUMIFS('Sales receipt((當天)'!J:J,'Sales receipt((當天)'!A:A,'Sales receipt((當天)'!A4,'Sales receipt((當天)'!B:B,'Sales receipt((當天)'!B6)","v":0},{"$f":"SUMIFS('Sales receipt((當天)'!K:K,'Sales receipt((當天)'!A:A,'Sales receipt((當天)'!A5,'Sales receipt((當天)'!B:B,'Sales receipt((當天)'!B6)","v":0},{"$f":"SUMIFS('Sales receipt((當天)'!J:J,'Sales receipt((當天)'!A:A,'Sales receipt((當天)'!A5,'Sales receipt((當天)'!B:B,'Sales receipt((當天)'!B6)","v":0}]
["配件",{"$f":"SUMIFS('Sales receipt((當天)'!K:K,'Sales receipt((當天)'!A:A,'Sales receipt((當天)'!A2,'Sales receipt((當天)'!B:B,'Sales receipt((當天)'!B5)","v":0},{"$f":"SUMIFS('Sales receipt((當天)'!J:J,'Sales receipt((當天)'!A:A,'Sales receipt((當天)'!A2,'Sales receipt((當天)'!B:B,'Sales receipt((當天)'!B5)","v":0},{"$f":"SUMIFS('Sales receipt((當天)'!K:K,'Sales receipt((當天)'!A:A,'Sales receipt((當天)'!A3,'Sales receipt((當天)'!B:B,'Sales receipt((當天)'!B5)","v":0},{"$f":"SUMIFS('Sales receipt((當天)'!J:J,'Sales receipt((當天)'!A:A,'Sales receipt((當天)'!A3,'Sales receipt((當天)'!B:B,'Sales receipt((當天)'!B5)","v":0},{"$f":"SUMIFS('Sales receipt((當天)'!K:K,'Sales receipt((當天)'!A:A,'Sales receipt((當天)'!A7,'Sales receipt((當天)'!B:B,'Sales receipt((當天)'!B5)","v":0},{"$f":"SUMIFS('Sales receipt((當天)'!J:J,'Sales receipt((當天)'!A:A,'Sales receipt((當天)'!A7,'Sales receipt((當天)'!B:B,'Sales receipt((當天)'!B5)","v":0},{"$f":"SUMIFS('Sales receipt((當天)'!K:K,'Sales receipt((當天)'!A:A,'Sales receipt((當天)'!A6,'Sales receipt((當天)'!B:B,'Sales receipt((當天)'!B5)","v":0},{"$f":"SUMIFS('Sales receipt((當天)'!J:J,'Sales receipt((當天)'!A:A,'Sales receipt((當天)'!A6,'Sales receipt((當天)'!B:B,'Sales receipt((當天)'!B5)","v":0},{"$f":"SUMIFS('Sales receipt((當天)'!K:K,'Sales receipt((當天)'!A:A,'Sales receipt((當天)'!A8,'Sales receipt((當天)'!B:B,'Sales receipt((當天)'!B5)","v":0},{"$f":"SUMIFS('Sales receipt((當天)'!J:J,'Sales receipt((當天)'!A:A,'Sales receipt((當天)'!A8,'Sales receipt((當天)'!B:B,'Sales receipt((當天)'!B5)","v":0},{"$f":"SUMIFS('Sales receipt((當天)'!K:K,'Sales receipt((當天)'!A:A,'Sales receipt((當天)'!A4,'Sales receipt((當天)'!B:B,'Sales receipt((當天)'!B5)","v":0},{"$f":"SUMIFS('Sales receipt((當天)'!J:J,'Sales receipt((當天)'!A:A,'Sales receipt((當天)'!A4,'Sales receipt((當天)'!B:B,'Sales receipt((當天)'!B5)","v":0},{"$f":"SUMIFS('Sales receipt((當天)'!K:K,'Sales receipt((當天)'!A:A,'Sales receipt((當天)'!A5,'Sales receipt((當天)'!B:B,'Sales receipt((當天)'!B5)","v":0},{"$f":"SUMIFS('Sales receipt((當天)'!J:J,'Sales receipt((當天)'!A:A,'Sales receipt((當天)'!A5,'Sales receipt((當天)'!B:B,'Sales receipt((當天)'!B5)","v":0}]
["店鋪事項"]
["   "]

{"sheet":"個人KPI","index":1,"n_rows":113,"n_cols":14,"rows_kept":113,"merged":[[0,0,0,13],[1,0,1,6],[1,8,1,13],[2,0,18,0],[2,1,3,1],[2,8,3,8],[20,0,36,0],[20,1,21,1],[20,8,21,8],[39,0,55,0],[39,1,40,1],[39,8,40,8],[58,0,74,0],[58,1,59,1],[58,8,59,8],[77,0,93,0],[77,1,78,1],[77,8,78,8],[96,0,112,0],[96,1,97,1],[96,8,97,8]]}
["9月28-05號 個人品類銷售"]
["個人數KPI",{"$nulls":7},"個人數KPI"]
["Susanna","TW  5日"," MTD","ATV","UPT","NO ","QTY",null,"LW"," MTD","ATV","UPT","NO ","QTY"]
[null,null,98541,2615,3.6,38,139,null,null,53284,1969,{"v":3,"d":"3.0"},22,68]
[null,"VSLW",{"$f":"C4-J4","v":45257},{"$f":"D4-K4","v":646},{"$f":"E4-L4","v":{"v":0.6000000000000001,"d":"0.6"}},{"$f":"F4-M4","v":16},{"$f":"G4-N4","v":71}]
[]
[null,"中類","件數","金額","VSLW尚欠",{"$nulls":3},"中類","件數","金額"]
[null,"內搭",{"$f":"SUMIFS('個人KPISales receipt(MTD）'!J:J,'個人KPISales receipt(MTD）'!A:A,'個人KPISales receipt(MTD）'!A2,'個人KPISales receipt(MTD）'!B:B,'個人KPISales receipt(MTD）'!B4,'個人KPISales receipt(MTD）'!C:C,'個人KPISales receipt(MTD）'!C2)","v":0},{"$f":"SUMIFS('個人KPISales receipt(MTD）'!K:K,'個人KPISales receipt(MTD）'!A:A,'個人KPISales receipt(MTD）'!A2,'個人KPISales receipt(MTD）'!B:B,'個人KPISales receipt(MTD）'!B4,'個人KPISales receipt(MTD）'!C:C,'個人KPISales receipt(MTD）'!C2)","v":0},{"$f":"C8-J8","v":-13},{"$nulls":3},"內搭",13,10329]
[null,"針織上衣",{"$f":"SUMIFS('個人KPISales receipt(MTD）'!J:J,'個人KPISales receipt(MTD）'!A:A,'個人KPISales receipt(MTD）'!A2,'個人KPISales receipt(MTD）'!C:C,'個人KPISales receipt(MTD）'!C5)","v":0},{"$f":"SUMIFS('個人KPISales receipt(MTD）'!K:K,'個人KPISales receipt(MTD）'!A:A,'個人KPISales receipt(MTD）'!A2,'個人KPISales receipt(MTD）'!B:B,'個人KPISales receipt(MTD）'!B4,'個人KPISales receipt(MTD）'!C:C,'個人KPISales receipt(MTD）'!C5)","v":0},-6,{"$nulls":3},"針織上衣",6,7342]
[null,"針織褲",{"$f":"SUMIFS('個人KPISales receipt(MTD）'!J:J,'個人KPISales receipt(MTD）'!A:A,'個人KPISales receipt(MTD）'!A2,'個人KPISales receipt(MTD）'!B:B,'個人KPISales receipt(MTD）'!B4,'個人KPISales receipt(MTD）'!C:C,'個人KPISales receipt(MTD）'!C6)","v":0},{"$f":"SUMIFS('個人KPISales receipt(MTD）'!K:K,'個人KPISales receipt(MTD）'!A:A,'個人KPISales receipt(MTD）'!A2,'個人KPISales receipt(MTD）'!B:B,'個人KPISales receipt(MTD）'!B4,'個人KPISales receipt(MTD）'!C:C,'個人KPISales receipt(MTD）'!C6)","v":0},-5,{"$nulls":3},"針織褲",5,3879]
[null,"梭織上衣",{"$f":"SUMIFS('個人KPISales receipt(MTD）'!J:J,'個人KPISales receipt(MTD）'!A:A,'個人KPISales receipt(MTD）'!A2,'個人KPISales receipt(MTD）'!B:B,'個人KPISales receipt(MTD）'!B4,'個人KPISales receipt(MTD）'!C:C,'個人KPISales receipt(MTD）'!C7)","v":0},{"$f":"SUMIFS('個人KPISales receipt(MTD）'!K:K,'個人KPISales receipt(MTD）'!A:A,'個人KPISales receipt(MTD）'!A2,'個人KPISales receipt(MTD）'!C:C,'個人KPISales receipt(MTD）'!C7)","v":0},-4,{"$nulls":3},"梭織上衣",4,6672]
[null,"梭織褲",{"$f":"SUMIFS('個人KPISales receipt(MTD）'!J:J,'個人KPISales receipt(MTD）'!A:A,'個人KPISales receipt(MTD）'!A2,'個人KPISales receipt(MTD）'!B:B,'個人KPISales receipt(MTD）'!B4,'個人KPISales receipt(MTD）'!C:C,'個人KPISales receipt(MTD）'!C8)","v":0},{"$f":"SUMIFS('個人KPISales receipt(MTD）'!K:K,'個人KPISales receipt(MTD）'!A:A,'個人KPISales receipt(MTD）'!A2,'個人KPISales receipt(MTD）'!B:B,'個人KPISales receipt(MTD）'!B4,'個人KPISales receipt(MTD）'!C:C,'個人KPISales receipt(MTD）'!C8)","v":0},0,{"$nulls":3},"梭織褲"]
[null,"短T類",{"$f":"SUMIFS('個人KPISales receipt(MTD）'!J:J,'個人KPISales receipt(MTD）'!A:A,'個人KPISales receipt(MTD）'!A2,'個人KPISales receipt(MTD）'!B:B,'個人KPISales receipt(MTD）'!B4,'個人KPISales receipt(MTD）'!C:C,'個人KPISales receipt(MTD）'!C10)","v":0},{"$f":"SUMIFS('個人KPISales receipt(MTD）'!K:K,'個人KPISales receipt(MTD）'!A:A,'個人KPISales receipt(MTD）'!A2,'個人KPISales receipt(MTD）'!B:B,'個人KPISales receipt(MTD）'!B4,'個人KPISales receipt(MTD）'!C:C,'個人KPISales receipt(MTD）'!C10)","v":0},-11,{"$nulls":3},"短T類",11,6685]
[null,"裙裝",{"$f":"SUMIFS('個人KPISales receipt(MTD）'!J:J,'個人KPISales receipt(MTD）'!A:A,'個人KPISales receipt(MTD）'!A2,'個人KPISales receipt(MTD）'!C:C,'個人KPISales receipt(MTD）'!C12)","v":0},{"$f":"SUMIFS('個人KPISales receipt(MTD）'!K:K,'個人KPISales receipt(MTD）'!A:A,'個人KPISales receipt(MTD）'!A2,'個人KPISales receipt(MTD）'!B:B,'個人KPISales receipt(MTD）'!B4,'個人KPISales receipt(MTD）'!C:C,'個人KPISales receipt(MTD）'!C12)","v":0},-1,{"$nulls":3},"裙裝",1,1207]
[null,"編織衫",{"$f":"SUMIFS('個人KPISales receipt(MTD）'!J:J,'個人KPISales receipt(MTD）'!A:A,'個人KPISales receipt(MTD）'!A2,'個人KPISales receipt(MTD）'!B:B,'個人KPISales receipt(MTD）'!B4,'個人KPISales receipt(MTD）'!C:C,'個人KPISales receipt(MTD）'!C13)","v":0},{"$f":"SUMIFS('個人KPISales receipt(MTD）'!K:K,'個人KPISales receipt(MTD）'!A:A,'個人KPISales receipt(MTD）'!A2,'個人KPISales receipt(MTD）'!B:B,'個人KPISales receipt(MTD）'!B4,'個人KPISales receipt(MTD）'!C:C,'個人KPISales receipt(MTD）'!C13)","v":0},-8,{"$nulls":3},"編織衫",8,9439]
[null,"襯衫",{"$f":"SUMIFS('個人KPISales receipt(MTD）'!J:J,'個人KPISales receipt(MTD）'!A:A,'個人KPISales receipt(MTD）'!A2,'個人KPISales receipt(MTD）'!B:B,'個人KPISales receipt(MTD）'!B4,'個人KPISales receipt(MTD）'!C:C,'個人KPISales receipt(MTD）'!C14)","v":0},{"$f":"SUMIFS('個人KPISales receipt(MTD）'!K:K,'個人KPISales receipt(MTD）'!A:A,'個人KPISales receipt(MTD）'!A2,'個人KPISales receipt(MTD）'!B:B,'個人KPISales receipt(MTD）'!B4,'個人KPISales receipt(MTD）'!C:C,'個人KPISales receipt(MTD）'!C14)","v":0},0,{"$nulls":3},"襯衫",0,0]
[null,"棉服",{"$f":"SUMIFS('個人KPISales receipt(MTD）'!J:J,'個人KPISales receipt(MTD）'!A:A,'個人KPISales receipt(MTD）'!A2,'個人KPISales receipt(MTD）'!B:B,'個人KPISales receipt(MTD）'!B4,'個人KPISales receipt(MTD）'!C:C,'個人KPISales receipt(MTD）'!C9)","v":0},{"$f":"SUMIFS('個人KPISales receipt(MTD）'!K:K,'個人KPISales receipt(MTD）'!A:A,'個人KPISales receipt(MTD）'!A2,'個人KPISales receipt(MTD）'!B:B,'個人KPISales receipt(MTD）'!B4,'個人KPISales receipt(MTD）'!C:C,'個人KPISales receipt(MTD）'!C9)","v":0},0,{"$nulls":3},"棉服",0,0]
[null,"羽絨服",{"$f":"SUMIFS('個人KPISales receipt(MTD）'!J:J,'個人KPISales receipt(MTD）'!A:A,'個人KPISales receipt(MTD）'!A2,'個人KPISales receipt(MTD）'!B:B,'個人KPISales receipt(MTD）'!B4,'個人KPISales receipt(MTD）'!C:C,'個人KPISales receipt(MTD）'!C4)","v":0},{"$f":"SUMIFS('個人KPISales receipt(MTD）'!K:K,'個人KPISales receipt(MTD）'!A:A,'個人KPISales receipt(MTD）'!A2,'個人KPISales receipt(MTD）'!B:B,'個人KPISales receipt(MTD）'!B4,'個人KPISales receipt(MTD）'!C:C,'個人KPISales receipt(MTD）'!C4)","v":0},{"$nulls":4},"羽絨服",3,4387]
[null,"鞋",{"$f":"SUMIFS('個人KPISales receipt(MTD）'!J:J,'個人KPISales receipt(MTD）'!A:A,'個人KPISales receipt(MTD）'!A2,'個人KPISales receipt(MTD）'!B:B,'個人KPISales receipt(MTD）'!B6)","v":0},{"$f":"SUMIFS('個人KPISales receipt(MTD）'!K:K,'個人KPISales receipt(MTD）'!A:A,'個人KPISales receipt(MTD）'!A2,'個人KPISales receipt(MTD）'!B:B,'個人KPISales receipt(MTD）'!B6)","v":0},-3,{"$nulls":3},"鞋",3,3102]
[]
["JANET","TW 6日 "," MTD","ATV","UPT","NO ","QTY",null,"LW"," MTD","ATV","UPT","NO ","QTY"]
[null,null,120332,2507,3.5,48,168,null,null,40799,2668,3.6,16,58]
[null,"VSLW",{"$f":"C22-J22","v":79533},{"$f":"D22-K22","v":-161},{"$f":"E22-L22","v":{"v":-0.10000000000000009,"d":"-0.1"}},{"$f":"F22-M22","v":32},{"$f":"G22-N22","v":110}]
[]
[null,"中類","件數","金額","VSLW尚欠",{"$nulls":3},"中類","件數","金額"]
[null,"內搭",{"$f":"SUMIFS('個人KPISales receipt(MTD）'!J:J,'個人KPISales receipt(MTD）'!A:A,'個人KPISales receipt(MTD）'!A3,'個人KPISales receipt(MTD）'!B:B,'個人KPISales receipt(MTD）'!B4,'個人KPISales receipt(MTD）'!C:C,'個人KPISales receipt(MTD）'!C2)","v":0},{"$f":"SUMIFS('個人KPISales receipt(MTD）'!K:K,'個人KPISales receipt(MTD）'!A:A,'個人KPISales receipt(MTD）'!A3,'個人KPISales receipt(MTD）'!B:B,'個人KPISales receipt(MTD）'!B4,'個人KPISales receipt(MTD）'!C:C,'個人KPISales receipt(MTD）'!C2)","v":0},{"$f":"C26-J26","v":-6},{"$nulls":3},"內搭",6,5089]
[null,"針織上衣",{"$f":"SUMIFS('個人KPISales receipt(MTD）'!J:J,'個人KPISales receipt(MTD）'!A:A,'個人KPISales receipt(MTD）'!A3,'個人KPISales receipt(MTD）'!C:C,'個人KPISales receipt(MTD）'!C5)","v":0},{"$f":"SUMIFS('個人KPISales receipt(MTD）'!K:K,'個人KPISales receipt(MTD）'!A:A,'個人KPISales receipt(MTD）'!A3,'個人KPISales receipt(MTD）'!B:B,'個人KPISales receipt(MTD）'!B4,'個人KPISales receipt(MTD）'!C:C,'個人KPISales receipt(MTD）'!C5)","v":0},-1,{"$nulls":3},"針織上衣",1,1245]
[null,"針織褲",{"$f":"SUMIFS('個人KPISales receipt(MTD）'!J:J,'個人KPISales receipt(MTD）'!A:A,'個人KPISales receipt(MTD）'!A3,'個人KPISales receipt(MTD）'!B:B,'個人KPISales receipt(MTD）'!B4,'個人KPISales receipt(MTD）'!C:C,'個人KPISales receipt(MTD）'!C6)","v":0},{"$f":"SUMIFS('個人KPISales receipt(MTD）'!K:K,'個人KPISales receipt(MTD）'!A:A,'個人KPISales receipt(MTD）'!A3,'個人KPISales receipt(MTD）'!B:B,'個人KPISales receipt(MTD）'!B4,'個人KPISales receipt(MTD）'!C:C,'個人KPISales receipt(MTD）'!C6)","v":0},-5,{"$nulls":3},"針織褲",5,3975]
[null,"梭織上衣",{"$f":"SUMIFS('個人KPISales receipt(MTD）'!J:J,'個人KPISales receipt(MTD）'!A:A,'個人KPISales receipt(MTD）'!A3,'個人KPISales receipt(MTD）'!B:B,'個人KPISales receipt(MTD）'!B4,'個人KPISales receipt(MTD）'!C:C,'個人KPISales receipt(MTD）'!C7)","v":0},{"$f":"SUMIFS('個人KPISales receipt(MTD）'!K:K,'個人KPISales receipt(MTD）'!A:A,'個人KPISales receipt(MTD）'!A3,'個人KPISales receipt(MTD）'!C:C,'個人KPISales receipt(MTD）'!C7)","v":0},-6,{"$nulls":3},"梭織上衣",6,11567]
[null,"梭織褲",{"$f":"SUMIFS('個人KPISales receipt(MTD）'!J:J,'個人KPISales receipt(MTD）'!A:A,'個人KPISales receipt(MTD）'!A3,'個人KPISales receipt(MTD）'!B:B,'個人KPISales receipt(MTD）'!B4,'個人KPISales receipt(MTD）'!C:C,'個人KPISales receipt(MTD）'!C8)","v":0},{"$f":"SUMIFS('個人KPISales receipt(MTD）'!K:K,'個人KPISales receipt(MTD）'!A:A,'個人KPISales receipt(MTD）'!A3,'個人KPISales receipt(MTD）'!B:B,'個人KPISales receipt(MTD）'!B4,'個人KPISales receipt(MTD）'!C:C,'個人KPISales receipt(MTD）'!C8)","v":0},-3,{"$nulls":3},"梭織褲",3,3016]
[null,"短T類",{"$f":"SUMIFS('個人KPISales receipt(MTD）'!J:J,'個人KPISales receipt(MTD）'!A:A,'個人KPISales receipt(MTD）'!A3,'個人KPISales receipt(MTD）'!B:B,'個人KPISales receipt(MTD）'!B4,'個人KPISales receipt(MTD）'!C:C,'個人KPISales receipt(MTD）'!C10)","v":0},{"$f":"SUMIFS('個人KPISales receipt(MTD）'!K:K,'個人KPISales receipt(MTD）'!A:A,'個人KPISales receipt(MTD）'!A3,'個人KPISales receipt(MTD）'!B:B,'個人KPISales receipt(MTD）'!B4,'個人KPISales receipt(MTD）'!C:C,'個人KPISales receipt(MTD）'!C10)","v":0},-1,{"$nulls":3},"短T類",1,780]
[null,"裙裝",{"$f":"SUMIFS('個人KPISales receipt(MTD）'!J:J,'個人KPISales receipt(MTD）'!A:A,'個人KPISales receipt(MTD）'!A3,'個人KPISales receipt(MTD）'!C:C,'個人KPISales receipt(MTD）'!C12)","v":0},{"$f":"SUMIFS('個人KPISales receipt(MTD）'!K:K,'個人KPISales receipt(MTD）'!A:A,'個人KPISales receipt(MTD）'!A3,'個人KPISales receipt(MTD）'!B:B,'個人KPISales receipt(MTD）'!B4,'個人KPISales receipt(MTD）'!C:C,'個人KPISales receipt(MTD）'!C12)","v":0},-1,{"$nulls":3},"裙裝",1,1350]
[null,"編織衫",{"$f":"SUMIFS('個人KPISales receipt(MTD）'!J:J,'個人KPISales receipt(MTD）'!A:A,'個人KPISales receipt(MTD）'!A3,'個人KPISales receipt(MTD）'!B:B,'個人KPISales receipt(MTD）'!B4,'個人KPISales receipt(MTD）'!C:C,'個人KPISales receipt(MTD）'!C13)","v":0},{"$f":"SUMIFS('個人KPISales receipt(MTD）'!K:K,'個人KPISales receipt(MTD）'!A:A,'個人KPISales receipt(MTD）'!A3,'個人KPISales receipt(MTD）'!B:B,'個人KPISales receipt(MTD）'!B4,'個人KPISales receipt(MTD）'!C:C,'個人KPISales receipt(MTD）'!C13)","v":0},-3,{"$nulls":3},"編織衫",3,2607]
[null,"襯衫",{"$f":"SUMIFS('個人KPISales receipt(MTD）'!J:J,'個人KPISales receipt(MTD）'!A:A,'個人KPISales receipt(MTD）'!A3,'個人KPISales receipt(MTD）'!B:B,'個人KPISales receipt(MTD）'!B4,'個人KPISales receipt(MTD）'!C:C,'個人KPISales receipt(MTD）'!C14)","v":0},{"$f":"SUMIFS('個人KPISales receipt(MTD）'!K:K,'個人KPISales receipt(MTD）'!A:A,'個人KPISales receipt(MTD）'!A3,'個人KPISales receipt(MTD）'!B:B,'個人KPISales receipt(MTD）'!B4,'個人KPISales receipt(MTD）'!C:C,'個人KPISales receipt(MTD）'!C14)","v":0},0,{"$nulls":3},"襯衫",0,0]
[null,"棉服",{"$f":"SUMIFS('個人KPISales receipt(MTD）'!J:J,'個人KPISales receipt(MTD）'!A:A,'個人KPISales receipt(MTD）'!A3,'個人KPISales receipt(MTD）'!B:B,'個人KPISales receipt(MTD）'!B4,'個人KPISales receipt(MTD）'!C:C,'個人KPISales receipt(MTD）'!C9)","v":0},{"$f":"SUMIFS('個人KPISales receipt(MTD）'!K:K,'個人KPISales receipt(MTD）'!A:A,'個人KPISales receipt(MTD）'!A3,'個人KPISales receipt(MTD）'!B:B,'個人KPISales receipt(MTD）'!B4,'個人KPISales receipt(MTD）'!C:C,'個人KPISales receipt(MTD）'!C9)","v":0},0,{"$nulls":3},"棉服"]
[null,"羽絨服",{"$f":"SUMIFS('個人KPISales receipt(MTD）'!J:J,'個人KPISales receipt(MTD）'!A:A,'個人KPISales receipt(MTD）'!A3,'個人KPISales receipt(MTD）'!B:B,'個人KPISales receipt(MTD）'!B4,'個人KPISales receipt(MTD）'!C:C,'個人KPISales receipt(MTD）'!C4)","v":0},{"$f":"SUMIFS('個人KPISales receipt(MTD）'!K:K,'個人KPISales receipt(MTD）'!A:A,'個人KPISales receipt(MTD）'!A3,'個人KPISales receipt(MTD）'!B:B,'個人KPISales receipt(MTD）'!B4,'個人KPISales receipt(MTD）'!C:C,'個人KPISales receipt(MTD）'!C4)","v":0},{"$nulls":4},"羽絨服",3,5395]
[null,"鞋",{"$f":"SUMIFS('個人KPISales receipt(MTD）'!J:J,'個人KPISales receipt(MTD）'!A:A,'個人KPISales receipt(MTD）'!A3,'個人KPISales receipt(MTD）'!B:B,'個人KPISales receipt(MTD）'!B6)","v":0},{"$f":"SUMIFS('個人KPISales receipt(MTD）'!K:K,'個人KPISales receipt(MTD）'!A:A,'個人KPISales receipt(MTD）'!A3,'個人KPISales receipt(MTD）'!B:B,'個人KPISales receipt(MTD）'!B6)","v":0},-3,{"$nulls":3},"鞋",3,2586]
[]
[]
["khaki","TW 5日"," MTD","ATV","UPT","NO ","QTY",null,"LW"," MTD","ATV","UPT","NO ","QTY"]
[null,null,89399,2299,3.4,40,139,null,null,36421,2577,4.8,14,68]
[null,"VSLW",{"$f":"C41-J41","v":52978},{"$f":"D41-K41","v":-278},{"$f":"E41-L41","v":-1.4},{"$f":"F41-M41","v":26},{"$f":"G41-N41","v":71}]
[]
[null,"中類","件數","金額","VSLW尚欠",{"$nulls":3},"中類","件數","金額"]
[null,"內搭",{"$f":"SUMIFS('個人KPISales receipt(MTD）'!J:J,'個人KPISales receipt(MTD）'!A:A,'個人KPISales receipt(MTD）'!A5,'個人KPISales receipt(MTD）'!B:B,'個人KPISales receipt(MTD）'!B4,'個人KPISales receipt(MTD）'!C:C,'個人KPISales receipt(MTD）'!C2)","v":0},{"$f":"SUMIFS('個人KPISales receipt(MTD）'!K:K,'個人KPISales receipt(MTD）'!A:A,'個人KPISales receipt(MTD）'!A5,'個人KPISales receipt(MTD）'!B:B,'個人KPISales receipt(MTD）'!B4,'個人KPISales receipt(MTD）'!C:C,'個人KPISales receipt(MTD）'!C2)","v":0},{"$f":"C45-J45","v":-6},{"$nulls":3},"內搭",6,5701]
[null,"針織上衣",{"$f":"SUMIFS('個人KPISales receipt(MTD）'!J:J,'個人KPISales receipt(MTD）'!A:A,'個人KPISales receipt(MTD）'!A5,'個人KPISales receipt(MTD）'!C:C,'個人KPISales receipt(MTD）'!C5)","v":0},{"$f":"SUMIFS('個人KPISales receipt(MTD）'!K:K,'個人KPISales receipt(MTD）'!A:A,'個人KPISales receipt(MTD）'!A5,'個人KPISales receipt(MTD）'!B:B,'個人KPISales receipt(MTD）'!B4,'個人KPISales receipt(MTD）'!C:C,'個人KPISales receipt(MTD）'!C5)","v":0},-2,{"$nulls":3},"針織上衣",2,2289]
[null,"針織褲",{"$f":"SUMIFS('個人KPISales receipt(MTD）'!J:J,'個人KPISales receipt(MTD）'!A:A,'個人KPISales receipt(MTD）'!A5,'個人KPISales receipt(MTD）'!B:B,'個人KPISales receipt(MTD）'!B4,'個人KPISales receipt(MTD）'!C:C,'個人KPISales receipt(MTD）'!C6)","v":0},{"$f":"SUMIFS('個人KPISales receipt(MTD）'!K:K,'個人KPISales receipt(MTD）'!A:A,'個人KPISales receipt(MTD）'!A5,'個人KPISales receipt(MTD）'!B:B,'個人KPISales receipt(MTD）'!B4,'個人KPISales receipt(MTD）'!C:C,'個人KPISales receipt(MTD）'!C6)","v":0},-10,{"$nulls":3},"針織褲",10,7556]
[null,"梭織上衣",{"$f":"SUMIFS('個人KPISales receipt(MTD）'!J:J,'個人KPISales receipt(MTD）'!A:A,'個人KPISales receipt(MTD）'!A5,'個人KPISales receipt(MTD）'!B:B,'個人KPISales receipt(MTD）'!B4,'個人KPISales receipt(MTD）'!C:C,'個人KPISales receipt(MTD）'!C7)","v":0},{"$f":"SUMIFS('個人KPISales receipt(MTD）'!K:K,'個人KPISales receipt(MTD）'!A:A,'個人KPISales receipt(MTD）'!A5,'個人KPISales receipt(MTD）'!C:C,'個人KPISales receipt(MTD）'!C7)","v":0},-4,{"$nulls":3},"梭織上衣",4,7731]
[null,"梭織褲",{"$f":"SUMIFS('個人KPISales receipt(MTD）'!J:J,'個人KPISales receipt(MTD）'!A:A,'個人KPISales receipt(MTD）'!A5,'個人KPISales receipt(MTD）'!B:B,'個人KPISales receipt(MTD）'!B4,'個人KPISales receipt(MTD）'!C:C,'個人KPISales receipt(MTD）'!C8)","v":0},{"$f":"SUMIFS('個人KPISales receipt(MTD）'!K:K,'個人KPISales receipt(MTD）'!A:A,'個人KPISales receipt(MTD）'!A5,'個人KPISales receipt(MTD）'!B:B,'個人KPISales receipt(MTD）'!B4,'個人KPISales receipt(MTD）'!C:C,'個人KPISales receipt(MTD）'!C8)","v":0},0,{"$nulls":3},"梭織褲"]
[null,"短T類",{"$f":"SUMIFS('個人KPISales receipt(MTD）'!J:J,'個人KPISales receipt(MTD）'!A:A,'個人KPISales receipt(MTD）'!A5,'個人KPISales receipt(MTD）'!B:B,'個人KPISales receipt(MTD）'!B4,'個人KPISales receipt(MTD）'!C:C,'個人KPISales receipt(MTD）'!C10)","v":0},{"$f":"SUMIFS('個人KPISales receipt(MTD）'!K:K,'個人KPISales receipt(MTD）'!A:A,'個人KPISales receipt(MTD）'!A5,'個人KPISales receipt(MTD）'!B:B,'個人KPISales receipt(MTD）'!B4,'個人KPISales receipt(MTD）'!C:C,'個人KPISales receipt(MTD）'!C10)","v":0},-3,{"$nulls":3},"短T類",3,1972]
[null,"裙裝",{"$f":"SUMIFS('個人KPISales receipt(MTD）'!J:J,'個人KPISales receipt(MTD）'!A:A,'個人KPISales receipt(MTD）'!A5,'個人KPISales receipt(MTD）'!C:C,'個人KPISales receipt(MTD）'!C12)","v":0},{"$f":"SUMIFS('個人KPISales receipt(MTD）'!K:K,'個人KPISales receipt(MTD）'!A:A,'個人KPISales receipt(MTD）'!A5,'個人KPISales receipt(MTD）'!B:B,'個人KPISales receipt(MTD）'!B4,'個人KPISales receipt(MTD）'!C:C,'個人KPISales receipt(MTD）'!C12)","v":0},0,{"$nulls":3},"裙裝",0,0]
[null,"編織衫",{"$f":"SUMIFS('個人KPISales receipt(MTD）'!J:J,'個人KPISales receipt(MTD）'!A:A,'個人KPISales receipt(MTD）'!A5,'個人KPISales receipt(MTD）'!B:B,'個人KPISales receipt(MTD）'!B4,'個人KPISales receipt(MTD）'!C:C,'個人KPISales receipt(MTD）'!C13)","v":0},{"$f":"SUMIFS('個人KPISales receipt(MTD）'!K:K,'個人KPISales receipt(MTD）'!A:A,'個人KPISales receipt(MTD）'!A5,'個人KPISales receipt(MTD）'!B:B,'個人KPISales receipt(MTD）'!B4,'個人KPISales receipt(MTD）'!C:C,'個人KPISales receipt(MTD）'!C13)","v":0},-1,{"$nulls":3},"編織衫",1,818]
[null,"襯衫",{"$f":"SUMIFS('個人KPISales receipt(MTD）'!J:J,'個人KPISales receipt(MTD）'!A:A,'個人KPISales receipt(MTD）'!A5,'個人KPISales receipt(MTD）'!B:B,'個人KPISales receipt(MTD）'!B4,'個人KPISales receipt(MTD）'!C:C,'個人KPISales receipt(MTD）'!C14)","v":0},{"$f":"SUMIFS('個人KPISales receipt(MTD）'!K:K,'個人KPISales receipt(MTD）'!A:A,'個人KPISales receipt(MTD）'!A5,'個人KPISales receipt(MTD）'!B:B,'個人KPISales receipt(MTD）'!B4,'個人KPISales receipt(MTD）'!C:C,'個人KPISales receipt(MTD）'!C14)","v":0},0,{"$nulls":3},"襯衫",0,0]
[null,"棉服",{"$f":"SUMIFS('個人KPISales receipt(MTD）'!J:J,'個人KPISales receipt(MTD）'!A:A,'個人KPISales receipt(MTD）'!A5,'個人KPISales receipt(MTD）'!B:B,'個人KPISales receipt(MTD）'!B4,'個人KPISales receipt(MTD）'!C:C,'個人KPISales receipt(MTD）'!C9)","v":0},{"$f":"SUMIFS('個人KPISales receipt(MTD）'!K:K,'個人KPISales receipt(MTD）'!A:A,'個人KPISales receipt(MTD）'!A5,'個人KPISales receipt(MTD）'!B:B,'個人KPISales receipt(MTD）'!B4,'個人KPISales receipt(MTD）'!C:C,'個人KPISales receipt(MTD）'!C9)","v":0},0,{"$nulls":3},"棉服",0,0]
[null,"羽絨服",{"$f":"SUMIFS('個人KPISales receipt(MTD）'!J:J,'個人KPISales receipt(MTD）'!A:A,'個人KPISales receipt(MTD）'!A5,'個人KPISales receipt(MTD）'!B:B,'個人KPISales receipt(MTD）'!B4,'個人KPISales receipt(MTD）'!C:C,'個人KPISales receipt(MTD）'!C4)","v":0},{"$f":"SUMIFS('個人KPISales receipt(MTD）'!K:K,'個人KPISales receipt(MTD）'!A:A,'個人KPISales receipt(MTD）'!A5,'個人KPISales receipt(MTD）'!B:B,'個人KPISales receipt(MTD）'!B4,'個人KPISales receipt(MTD）'!C:C,'個人KPISales receipt(MTD）'!C4)","v":0},{"$nulls":4},"羽絨服",2,3236]
[null,"鞋",{"$f":"SUMIFS('個人KPISales receipt(MTD）'!J:J,'個人KPISales receipt(MTD）'!A:A,'個人KPISales receipt(MTD）'!A5,'個人KPISales receipt(MTD）'!B:B,'個人KPISales receipt(MTD）'!B6)","v":0},{"$f":"SUMIFS('個人KPISales receipt(MTD）'!K:K,'個人KPISales receipt(MTD）'!A:A,'個人KPISales receipt(MTD）'!A5,'個人KPISales receipt(MTD）'!B:B,'個人KPISales receipt(MTD）'!B6)","v":0},-5,{"$nulls":3},"鞋",5,5926]
[]
[]
["RYAN","TW 5日"," MTD","ATV","UPT","NO ","QTY",null,"LW"," MTD","ATV","UPT","NO ","QTY"]
[null,null,106568,2286,3.6,46,167,null,null,44416,2494,4.2,18,76]
[null,"VSLW",{"$f":"C60-J60","v":62152},{"$f":"D60-K60","v":-208},{"$f":"E60-L60","v":{"v":-0.6000000000000001,"d":"-0.6"}},{"$f":"F60-M60","v":28},{"$f":"G60-N60","v":91}]
[]
[null,"中類","件數","金額","VSLW尚欠",{"$nulls":3},"中類","件數","金額"]
[null,"內搭",{"$f":"SUMIFS('個人KPISales receipt(MTD）'!J:J,'個人KPISales receipt(MTD）'!A:A,'個人KPISales receipt(MTD）'!A6,'個人KPISales receipt(MTD）'!B:B,'個人KPISales receipt(MTD）'!B4,'個人KPISales receipt(MTD）'!C:C,'個人KPISales receipt(MTD）'!C2)","v":0},{"$f":"SUMIFS('個人KPISales receipt(MTD）'!K:K,'個人KPISales receipt(MTD）'!A:A,'個人KPISales receipt(MTD）'!A6,'個人KPISales receipt(MTD）'!B:B,'個人KPISales receipt(MTD）'!B4,'個人KPISales receipt(MTD）'!C:C,'個人KPISales receipt(MTD）'!C2)","v":0},{"$f":"C64-J64","v":-7},{"$nulls":3},"內搭",7,5960]
[null,"針織上衣",{"$f":"SUMIFS('個人KPISales receipt(MTD）'!J:J,'個人KPISales receipt(MTD）'!A:A,'個人KPISales receipt(MTD）'!A6,'個人KPISales receipt(MTD）'!C:C,'個人KPISales receipt(MTD）'!C5)","v":0},{"$f":"SUMIFS('個人KPISales receipt(MTD）'!K:K,'個人KPISales receipt(MTD）'!A:A,'個人KPISales receipt(MTD）'!A6,'個人KPISales receipt(MTD）'!B:B,'個人KPISales receipt(MTD）'!B4,'個人KPISales receipt(MTD）'!C:C,'個人KPISales receipt(MTD）'!C5)","v":0},-3,{"$nulls":3},"針織上衣",3,3708]
[null,"針織褲",{"$f":"SUMIFS('個人KPISales receipt(MTD）'!J:J,'個人KPISales receipt(MTD）'!A:A,'個人KPISales receipt(MTD）'!A6,'個人KPISales receipt(MTD）'!B:B,'個人KPISales receipt(MTD）'!B4,'個人KPISales receipt(MTD）'!C:C,'個人KPISales receipt(MTD）'!C6)","v":0},{"$f":"SUMIFS('個人KPISales receipt(MTD）'!K:K,'個人KPISales receipt(MTD）'!A:A,'個人KPISales receipt(MTD）'!A6,'個人KPISales receipt(MTD）'!B:B,'個人KPISales receipt(MTD）'!B4,'個人KPISales receipt(MTD）'!C:C,'個人KPISales receipt(MTD）'!C6)","v":0},-5,{"$nulls":3},"針織褲",5,3691]
[null,"梭織上衣",{"$f":"SUMIFS('個人KPISales receipt(MTD）'!J:J,'個人KPISales receipt(MTD）'!A:A,'個人KPISales receipt(MTD）'!A6,'個人KPISales receipt(MTD）'!B:B,'個人KPISales receipt(MTD）'!B4,'個人KPISales receipt(MTD）'!C:C,'個人KPISales receipt(MTD）'!C7)","v":0},{"$f":"SUMIFS('個人KPISales receipt(MTD）'!K:K,'個人KPISales receipt(MTD）'!A:A,'個人KPISales receipt(MTD）'!A6,'個人KPISales receipt(MTD）'!C:C,'個人KPISales receipt(MTD）'!C7)","v":0},-5,{"$nulls":3},"梭織上衣",5,8214]
[null,"梭織褲",{"$f":"SUMIFS('個人KPISales receipt(MTD）'!J:J,'個人KPISales receipt(MTD）'!A:A,'個人KPISales receipt(MTD）'!A6,'個人KPISales receipt(MTD）'!B:B,'個人KPISales receipt(MTD）'!B4,'個人KPISales receipt(MTD）'!C:C,'個人KPISales receipt(MTD）'!C8)","v":0},{"$f":"SUMIFS('個人KPISales receipt(MTD）'!K:K,'個人KPISales receipt(MTD）'!A:A,'個人KPISales receipt(MTD）'!A6,'個人KPISales receipt(MTD）'!B:B,'個人KPISales receipt(MTD）'!B4,'個人KPISales receipt(MTD）'!C:C,'個人KPISales receipt(MTD）'!C8)","v":0},-2,{"$nulls":3},"梭織褲",2,2772]
[null,"短T類",{"$f":"SUMIFS('個人KPISales receipt(MTD）'!J:J,'個人KPISales receipt(MTD）'!A:A,'個人KPISales receipt(MTD）'!A6,'個人KPISales receipt(MTD）'!B:B,'個人KPISales receipt(MTD）'!B4,'個人KPISales receipt(MTD）'!C:C,'個人KPISales receipt(MTD）'!C10)","v":0},{"$f":"SUMIFS('個人KPISales receipt(MTD）'!K:K,'個人KPISales receipt(MTD）'!A:A,'個人KPISales receipt(MTD）'!A6,'個人KPISales receipt(MTD）'!B:B,'個人KPISales receipt(MTD）'!B4,'個人KPISales receipt(MTD）'!C:C,'個人KPISales receipt(MTD）'!C10)","v":0},-2,{"$nulls":3},"短T類",2,1555]
[null,"裙裝",{"$f":"SUMIFS('個人KPISales receipt(MTD）'!J:J,'個人KPISales receipt(MTD）'!A:A,'個人KPISales receipt(MTD）'!A6,'個人KPISales receipt(MTD）'!C:C,'個人KPISales receipt(MTD）'!C12)","v":0},{"$f":"SUMIFS('個人KPISales receipt(MTD）'!K:K,'個人KPISales receipt(MTD）'!A:A,'個人KPISales receipt(MTD）'!A6,'個人KPISales receipt(MTD）'!B:B,'個人KPISales receipt(MTD）'!B4,'個人KPISales receipt(MTD）'!C:C,'個人KPISales receipt(MTD）'!C12)","v":0},-1,{"$nulls":3},"裙裝",1,1346]
[null,"編織衫",{"$f":"SUMIFS('個人KPISales receipt(MTD）'!J:J,'個人KPISales receipt(MTD）'!A:A,'個人KPISales receipt(MTD）'!A6,'個人KPISales receipt(MTD）'!B:B,'個人KPISales receipt(MTD）'!B4,'個人KPISales receipt(MTD）'!C:C,'個人KPISales receipt(MTD）'!C13)","v":0},{"$f":"SUMIFS('個人KPISales receipt(MTD）'!K:K,'個人KPISales receipt(MTD）'!A:A,'個人KPISales receipt(MTD）'!A6,'個人KPISales receipt(MTD）'!B:B,'個人KPISales receipt(MTD）'!B4,'個人KPISales receipt(MTD）'!C:C,'個人KPISales receipt(MTD）'!C13)","v":0},-1,{"$nulls":3},"編織衫",1,992]
[null,"襯衫",{"$f":"SUMIFS('個人KPISales receipt(MTD）'!J:J,'個人KPISales receipt(MTD）'!A:A,'個人KPISales receipt(MTD）'!A6,'個人KPISales receipt(MTD）'!B:B,'個人KPISales receipt(MTD）'!B4,'個人KPISales receipt(MTD）'!C:C,'個人KPISales receipt(MTD）'!C14)","v":0},{"$f":"SUMIFS('個人KPISales receipt(MTD）'!K:K,'個人KPISales receipt(MTD）'!A:A,'個人KPISales receipt(MTD）'!A6,'個人KPISales receipt(MTD）'!B:B,'個人KPISales receipt(MTD）'!B4,'個人KPISales receipt(MTD）'!C:C,'個人KPISales receipt(MTD）'!C14)","v":0},0,{"$nulls":3},"襯衫",0,0]
[null,"棉服",{"$f":"SUMIFS('個人KPISales receipt(MTD）'!J:J,'個人KPISales receipt(MTD）'!A:A,'個人KPISales receipt(MTD）'!A6,'個人KPISales receipt(MTD）'!B:B,'個人KPISales receipt(MTD）'!B4,'個人KPISales receipt(MTD）'!C:C,'個人KPISales receipt(MTD）'!C9)","v":0},{"$f":"SUMIFS('個人KPISales receipt(MTD）'!K:K,'個人KPISales receipt(MTD）'!A:A,'個人KPISales receipt(MTD）'!A6,'個人KPISales receipt(MTD）'!B:B,'個人KPISales receipt(MTD）'!B4,'個人KPISales receipt(MTD）'!C:C,'個人KPISales receipt(MTD）'!C9)","v":0},-3,{"$nulls":3},"棉服",3,5940]
[null,"羽絨服",{"$f":"SUMIFS('個人KPISales receipt(MTD）'!J:J,'個人KPISales receipt(MTD）'!A:A,'個人KPISales receipt(MTD）'!A6,'個人KPISales receipt(MTD）'!B:B,'個人KPISales receipt(MTD）'!B4,'個人KPISales receipt(MTD）'!C:C,'個人KPISales receipt(MTD）'!C4)","v":0},{"$f":"SUMIFS('個人KPISales receipt(MTD）'!K:K,'個人KPISales receipt(MTD）'!A:A,'個人KPISales receipt(MTD）'!A6,'個人KPISales receipt(MTD）'!B:B,'個人KPISales receipt(MTD）'!B4,'個人KPISales receipt(MTD）'!C:C,'個人KPISales receipt(MTD）'!C4)","v":0},{"$nulls":4},"羽絨服"]
[null,"鞋",{"$f":"SUMIFS('個人KPISales receipt(MTD）'!J:J,'個人KPISales receipt(MTD）'!A:A,'個人KPISales receipt(MTD）'!A6,'個人KPISales receipt(MTD）'!B:B,'個人KPISales receipt(MTD）'!B6)","v":0},{"$f":"SUMIFS('個人KPISales receipt(MTD）'!K:K,'個人KPISales receipt(MTD）'!A:A,'個人KPISales receipt(MTD）'!A6,'個人KPISales receipt(MTD）'!B:B,'個人KPISales receipt(MTD）'!B6)","v":0},-30,{"$nulls":3},"鞋",30,26137]
[]
[]
["FANNY","TW 5日"," MTD","ATV","UPT","NO ","QTY",null,"LW"," MTD","ATV","UPT","NO ","QTY"]
[null,null,112271,3231,{"v":5,"d":"5.0"},35,177,null,null,56940,2204,3.5,26,91]
[null,"VSLW",{"$f":"C79-J79","v":55331},{"$f":"D79-K79","v":1027},{"$f":"E79-L79","v":1.5},{"$f":"F79-M79","v":9},{"$f":"G79-N79","v":86}]
[]
[null,"中類","件數","金額","VSLW尚欠",{"$nulls":3},"中類","件數","金額"]
[null,"內搭",{"$f":"SUMIFS('個人KPISales receipt(MTD）'!J:J,'個人KPISales receipt(MTD）'!A:A,'個人KPISales receipt(MTD）'!A7,'個人KPISales receipt(MTD）'!B:B,'個人KPISales receipt(MTD）'!B4,'個人KPISales receipt(MTD）'!C:C,'個人KPISales receipt(MTD）'!C2)","v":0},{"$f":"SUMIFS('個人KPISales receipt(MTD）'!K:K,'個人KPISales receipt(MTD）'!A:A,'個人KPISales receipt(MTD）'!A7,'個人KPISales receipt(MTD）'!B:B,'個人KPISales receipt(MTD）'!B4,'個人KPISales receipt(MTD）'!C:C,'個人KPISales receipt(MTD）'!C2)","v":0},{"$f":"C83-J83","v":-8},{"$nulls":3},"內搭",8,6279]
[null,"針織上衣",{"$f":"SUMIFS('個人KPISales receipt(MTD）'!J:J,'個人KPISales receipt(MTD）'!A:A,'個人KPISales receipt(MTD）'!A7,'個人KPISales receipt(MTD）'!C:C,'個人KPISales receipt(MTD）'!C5)","v":0},{"$f":"SUMIFS('個人KPISales receipt(MTD）'!K:K,'個人KPISales receipt(MTD）'!A:A,'個人KPISales receipt(MTD）'!A7,'個人KPISales receipt(MTD）'!B:B,'個人KPISales receipt(MTD）'!B4,'個人KPISales receipt(MTD）'!C:C,'個人KPISales receipt(MTD）'!C5)","v":0},-5,{"$nulls":3},"針織上衣",5,6104]
[null,"針織褲",{"$f":"SUMIFS('個人KPISales receipt(MTD）'!J:J,'個人KPISales receipt(MTD）'!A:A,'個人KPISales receipt(MTD）'!A7,'個人KPISales receipt(MTD）'!B:B,'個人KPISales receipt(MTD）'!B4,'個人KPISales receipt(MTD）'!C:C,'個人KPISales receipt(MTD）'!C6)","v":0},{"$f":"SUMIFS('個人KPISales receipt(MTD）'!K:K,'個人KPISales receipt(MTD）'!A:A,'個人KPISales receipt(MTD）'!A7,'個人KPISales receipt(MTD）'!B:B,'個人KPISales receipt(MTD）'!B4,'個人KPISales receipt(MTD）'!C:C,'個人KPISales receipt(MTD）'!C6)","v":0},-13,{"$nulls":3},"針織褲",13,6104]
[null,"梭織上衣",{"$f":"SUMIFS('個人KPISales receipt(MTD）'!J:J,'個人KPISales receipt(MTD）'!A:A,'個人KPISales receipt(MTD）'!A7,'個人KPISales receipt(MTD）'!B:B,'個人KPISales receipt(MTD）'!B4,'個人KPISales receipt(MTD）'!C:C,'個人KPISales receipt(MTD）'!C7)","v":0},{"$f":"SUMIFS('個人KPISales receipt(MTD）'!K:K,'個人KPISales receipt(MTD）'!A:A,'個人KPISales receipt(MTD）'!A7,'個人KPISales receipt(MTD）'!C:C,'個人KPISales receipt(MTD）'!C7)","v":0},-5,{"$nulls":3},"梭織上衣",5,9821]
[null,"梭織褲",{"$f":"SUMIFS('個人KPISales receipt(MTD）'!J:J,'個人KPISales receipt(MTD）'!A:A,'個人KPISales receipt(MTD）'!A7,'個人KPISales receipt(MTD）'!B:B,'個人KPISales receipt(MTD）'!B4,'個人KPISales receipt(MTD）'!C:C,'個人KPISales receipt(MTD）'!C8)","v":0},{"$f":"SUMIFS('個人KPISales receipt(MTD）'!K:K,'個人KPISales receipt(MTD）'!A:A,'個人KPISales receipt(MTD）'!A7,'個人KPISales receipt(MTD）'!B:B,'個人KPISales receipt(MTD）'!B4,'個人KPISales receipt(MTD）'!C:C,'個人KPISales receipt(MTD）'!C8)","v":0},-2,{"$nulls":3},"梭織褲",2,3038]
[null,"短T類",{"$f":"SUMIFS('個人KPISales receipt(MTD）'!J:J,'個人KPISales receipt(MTD）'!A:A,'個人KPISales receipt(MTD）'!A7,'個人KPISales receipt(MTD）'!B:B,'個人KPISales receipt(MTD）'!B4,'個人KPISales receipt(MTD）'!C:C,'個人KPISales receipt(MTD）'!C10)","v":0},{"$f":"SUMIFS('個人KPISales receipt(MTD）'!K:K,'個人KPISales receipt(MTD）'!A:A,'個人KPISales receipt(MTD）'!A7,'個人KPISales receipt(MTD）'!B:B,'個人KPISales receipt(MTD）'!B4,'個人KPISales receipt(MTD）'!C:C,'個人KPISales receipt(MTD）'!C10)","v":0},-6,{"$nulls":3},"短T類",6,4237]
[null,"裙裝",{"$f":"SUMIFS('個人KPISales receipt(MTD）'!J:J,'個人KPISales receipt(MTD）'!A:A,'個人KPISales receipt(MTD）'!A7,'個人KPISales receipt(MTD）'!C:C,'個人KPISales receipt(MTD）'!C12)","v":0},{"$f":"SUMIFS('個人KPISales receipt(MTD）'!K:K,'個人KPISales receipt(MTD）'!A:A,'個人KPISales receipt(MTD）'!A7,'個人KPISales receipt(MTD）'!B:B,'個人KPISales receipt(MTD）'!B4,'個人KPISales receipt(MTD）'!C:C,'個人KPISales receipt(MTD）'!C12)","v":0},0,{"$nulls":3},"裙裝"]
[null,"編織衫",{"$f":"SUMIFS('個人KPISales receipt(MTD）'!J:J,'個人KPISales receipt(MTD）'!A:A,'個人KPISales receipt(MTD）'!A7,'個人KPISales receipt(MTD）'!B:B,'個人KPISales receipt(MTD）'!B4,'個人KPISales receipt(MTD）'!C:C,'個人KPISales receipt(MTD）'!C13)","v":0},{"$f":"SUMIFS('個人KPISales receipt(MTD）'!K:K,'個人KPISales receipt(MTD）'!A:A,'個人KPISales receipt(MTD）'!A7,'個人KPISales receipt(MTD）'!B:B,'個人KPISales receipt(MTD）'!B4,'個人KPISales receipt(MTD）'!C:C,'個人KPISales receipt(MTD）'!C13)","v":0},-5,{"$nulls":3},"編織衫",5,6284]
[null,"襯衫",{"$f":"SUMIFS('個人KPISales receipt(MTD）'!J:J,'個人KPISales receipt(MTD）'!A:A,'個人KPISales receipt(MTD）'!A7,'個人KPISales receipt(MTD）'!B:B,'個人KPISales receipt(MTD）'!B4,'個人KPISales receipt(MTD）'!C:C,'個人KPISales receipt(MTD）'!C14)","v":0},{"$f":"SUMIFS('個人KPISales receipt(MTD）'!K:K,'個人KPISales receipt(MTD）'!A:A,'個人KPISales receipt(MTD）'!A7,'個人KPISales receipt(MTD）'!B:B,'個人KPISales receipt(MTD）'!B4,'個人KPISales receipt(MTD）'!C:C,'個人KPISales receipt(MTD）'!C14)","v":0},0,{"$nulls":3},"襯衫",0,0]
[null,"棉服",{"$f":"SUMIFS('個人KPISales receipt(MTD）'!J:J,'個人KPISales receipt(MTD）'!A:A,'個人KPISales receipt(MTD）'!A7,'個人KPISales receipt(MTD）'!B:B,'個人KPISales receipt(MTD）'!B4,'個人KPISales receipt(MTD）'!C:C,'個人KPISales receipt(MTD）'!C9)","v":0},{"$f":"SUMIFS('個人KPISales receipt(MTD）'!K:K,'個人KPISales receipt(MTD）'!A:A,'個人KPISales receipt(MTD）'!A7,'個人KPISales receipt(MTD）'!B:B,'個人KPISales receipt(MTD）'!B4,'個人KPISales receipt(MTD）'!C:C,'個人KPISales receipt(MTD）'!C9)","v":0},0,{"$nulls":3},"棉服"]
[null,"羽絨服",{"$f":"SUMIFS('個人KPISales receipt(MTD）'!J:J,'個人KPISales receipt(MTD）'!A:A,'個人KPISales receipt(MTD）'!A7,'個人KPISales receipt(MTD）'!B:B,'個人KPISales receipt(MTD）'!B4,'個人KPISales receipt(MTD）'!C:C,'個人KPISales receipt(MTD）'!C4)","v":0},{"$f":"SUMIFS('個人KPISales receipt(MTD）'!K:K,'個人KPISales receipt(MTD）'!A:A,'個人KPISales receipt(MTD）'!A7,'個人KPISales receipt(MTD）'!B:B,'個人KPISales receipt(MTD）'!B4,'個人KPISales receipt(MTD）'!C:C,'個人KPISales receipt(MTD）'!C4)","v":0},{"$nulls":4},"羽絨服",4,5322]
[null,"鞋",{"$f":"SUMIFS('個人KPISales receipt(MTD）'!J:J,'個人KPISales receipt(MTD）'!A:A,'個人KPISales receipt(MTD）'!A7,'個人KPISales receipt(MTD）'!B:B,'個人KPISales receipt(MTD）'!B6)","v":0},{"$f":"SUMIFS('個人KPISales receipt(MTD）'!K:K,'個人KPISales receipt(MTD）'!A:A,'個人KPISales receipt(MTD）'!A7,'個人KPISales receipt(MTD）'!B:B,'個人KPISales receipt(MTD）'!B6)","v":0},-5,{"$nulls":3},"鞋",5,4618]
[]
[]
["CARMEN","TW 5日"," MTD","ATV","UPT","NO ","QTY",null,"LW"," MTD","ATV","UPT","NO ","QTY"]
[null,null,85470,2664,3.5,31,111,null,null,52177,3981,{"v":4,"d":"4.0"},15,88]
[null,"VSLW",{"$f":"C98-J98","v":33293},{"$f":"D98-K98","v":-1317},{"$f":"E98-L98","v":-0.5},{"$f":"F98-M98","v":16},{"$f":"G98-N98","v":23}]
[null,null,56244,2017,3.4,28,97]
[null,"中類","件數","金額","VSLW尚欠",{"$nulls":3},"中類","件數","金額"]
[null,"內搭",{"$f":"SUMIFS('個人KPISales receipt(MTD）'!J:J,'個人KPISales receipt(MTD）'!A:A,'個人KPISales receipt(MTD）'!A8,'個人KPISales receipt(MTD）'!B:B,'個人KPISales receipt(MTD）'!B4,'個人KPISales receipt(MTD）'!C:C,'個人KPISales receipt(MTD）'!C2)","v":0},{"$f":"SUMIFS('個人KPISales receipt(MTD）'!K:K,'個人KPISales receipt(MTD）'!A:A,'個人KPISales receipt(MTD）'!A8,'個人KPISales receipt(MTD）'!B:B,'個人KPISales receipt(MTD）'!B4,'個人KPISales receipt(MTD）'!C:C,'個人KPISales receipt(MTD）'!C2)","v":0},{"$f":"C102-J102","v":-6},{"$nulls":3},"內搭",6,3885]
[null,"針織上衣",{"$f":"SUMIFS('個人KPISales receipt(MTD）'!J:J,'個人KPISales receipt(MTD）'!A:A,'個人KPISales receipt(MTD）'!A8,'個人KPISales receipt(MTD）'!C:C,'個人KPISales receipt(MTD）'!C5)","v":0},{"$f":"SUMIFS('個人KPISales receipt(MTD）'!K:K,'個人KPISales receipt(MTD）'!A:A,'個人KPISales receipt(MTD）'!A8,'個人KPISales receipt(MTD）'!B:B,'個人KPISales receipt(MTD）'!B4,'個人KPISales receipt(MTD）'!C:C,'個人KPISales receipt(MTD）'!C5)","v":0},-3,{"$nulls":3},"針織上衣",3,3717]
[null,"針織褲",{"$f":"SUMIFS('個人KPISales receipt(MTD）'!J:J,'個人KPISales receipt(MTD）'!A:A,'個人KPISales receipt(MTD）'!A8,'個人KPISales receipt(MTD）'!B:B,'個人KPISales receipt(MTD）'!B4,'個人KPISales receipt(MTD）'!C:C,'個人KPISales receipt(MTD）'!C6)","v":0},{"$f":"SUMIFS('個人KPISales receipt(MTD）'!K:K,'個人KPISales receipt(MTD）'!A:A,'個人KPISales receipt(MTD）'!A8,'個人KPISales receipt(MTD）'!B:B,'個人KPISales receipt(MTD）'!B4,'個人KPISales receipt(MTD）'!C:C,'個人KPISales receipt(MTD）'!C6)","v":0},-8,{"$nulls":3},"針織褲",8,5768]
[null,"梭織上衣",{"$f":"SUMIFS('個人KPISales receipt(MTD）'!J:J,'個人KPISales receipt(MTD）'!A:A,'個人KPISales receipt(MTD）'!A8,'個人KPISales receipt(MTD）'!B:B,'個人KPISales receipt(MTD）'!B4,'個人KPISales receipt(MTD）'!C:C,'個人KPISales receipt(MTD）'!C7)","v":0},{"$f":"SUMIFS('個人KPISales receipt(MTD）'!K:K,'個人KPISales receipt(MTD）'!A:A,'個人KPISales receipt(MTD）'!A8,'個人KPISales receipt(MTD）'!C:C,'個人KPISales receipt(MTD）'!C7)","v":0},-6,{"$nulls":3},"梭織上衣",6,10386]
[null,"梭織褲",{"$f":"SUMIFS('個人KPISales receipt(MTD）'!J:J,'個人KPISales receipt(MTD）'!A:A,'個人KPISales receipt(MTD）'!A8,'個人KPISales receipt(MTD）'!B:B,'個人KPISales receipt(MTD）'!B4,'個人KPISales receipt(MTD）'!C:C,'個人KPISales receipt(MTD）'!C8)","v":0},{"$f":"SUMIFS('個人KPISales receipt(MTD）'!K:K,'個人KPISales receipt(MTD）'!A:A,'個人KPISales receipt(MTD）'!A8,'個人KPISales receipt(MTD）'!B:B,'個人KPISales receipt(MTD）'!B4,'個人KPISales receipt(MTD）'!C:C,'個人KPISales receipt(MTD）'!C8)","v":0},-1,{"$nulls":3},"梭織褲",1,969]
[null,"短T類",{"$f":"SUMIFS('個人KPISales receipt(MTD）'!J:J,'個人KPISales receipt(MTD）'!A:A,'個人KPISales receipt(MTD）'!A8,'個人KPISales receipt(MTD）'!B:B,'個人KPISales receipt(MTD）'!B4,'個人KPISales receipt(MTD）'!C:C,'個人KPISales receipt(MTD）'!C10)","v":0},{"$f":"SUMIFS('個人KPISales receipt(MTD）'!K:K,'個人KPISales receipt(MTD）'!A:A,'個人KPISales receipt(MTD）'!A8,'個人KPISales receipt(MTD）'!B:B,'個人KPISales receipt(MTD）'!B4,'個人KPISales receipt(MTD）'!C:C,'個人KPISales receipt(MTD）'!C10)","v":0},-8,{"$nulls":3},"短T類",8,4699]
[null,"裙裝",{"$f":"SUMIFS('個人KPISales receipt(MTD）'!J:J,'個人KPISales receipt(MTD）'!A:A,'個人KPISales receipt(MTD）'!A8,'個人KPISales receipt(MTD）'!C:C,'個人KPISales receipt(MTD）'!C12)","v":0},{"$f":"SUMIFS('個人KPISales receipt(MTD）'!K:K,'個人KPISales receipt(MTD）'!A:A,'個人KPISales receipt(MTD）'!A8,'個人KPISales receipt(MTD）'!B:B,'個人KPISales receipt(MTD）'!B4,'個人KPISales receipt(MTD）'!C:C,'個人KPISales receipt(MTD）'!C12)","v":0},0,{"$nulls":3},"裙裝"]
[null,"編織衫",{"$f":"SUMIFS('個人KPISales receipt(MTD）'!J:J,'個人KPISales receipt(MTD）'!A:A,'個人KPISales receipt(MTD）'!A8,'個人KPISales receipt(MTD）'!B:B,'個人KPISales receipt(MTD）'!B4,'個人KPISales receipt(MTD）'!C:C,'個人KPISales receipt(MTD）'!C13)","v":0},{"$f":"SUMIFS('個人KPISales receipt(MTD）'!K:K,'個人KPISales receipt(MTD）'!A:A,'個人KPISales receipt(MTD）'!A8,'個人KPISales receipt(MTD）'!B:B,'個人KPISales receipt(MTD）'!B4,'個人KPISales receipt(MTD）'!C:C,'個人KPISales receipt(MTD）'!C13)","v":0},-6,{"$nulls":3},"編織衫",6,6045]
[null,"襯衫",{"$f":"SUMIFS('個人KPISales receipt(MTD）'!J:J,'個人KPISales receipt(MTD）'!A:A,'個人KPISales receipt(MTD）'!A8,'個人KPISales receipt(MTD）'!B:B,'個人KPISales receipt(MTD）'!B4,'個人KPISales receipt(MTD）'!C:C,'個人KPISales receipt(MTD）'!C14)","v":0},{"$f":"SUMIFS('個人KPISales receipt(MTD）'!K:K,'個人KPISales receipt(MTD）'!A:A,'個人KPISales receipt(MTD）'!A8,'個人KPISales receipt(MTD）'!B:B,'個人KPISales receipt(MTD）'!B4,'個人KPISales receipt(MTD）'!C:C,'個人KPISales receipt(MTD）'!C14)","v":0},0,{"$nulls":3},"襯衫",0,0]
[null,"棉服",{"$f":"SUMIFS('個人KPISales receipt(MTD）'!J:J,'個人KPISales receipt(MTD）'!A:A,'個人KPISales receipt(MTD）'!A8,'個人KPISales receipt(MTD）'!B:B,'個人KPISales receipt(MTD）'!B4,'個人KPISales receipt(MTD）'!C:C,'個人KPISales receipt(MTD）'!C9)","v":0},{"$f":"SUMIFS('個人KPISales receipt(MTD）'!K:K,'個人KPISales receipt(MTD）'!A:A,'個人KPISales receipt(MTD）'!A8,'個人KPISales receipt(MTD）'!B:B,'個人KPISales receipt(MTD）'!B4,'個人KPISales receipt(MTD）'!C:C,'個人KPISales receipt(MTD）'!C9)","v":0},0,{"$nulls":3},"棉服",0,0]
[null,"羽絨服",{"$f":"SUMIFS('個人KPISales receipt(MTD）'!J:J,'個人KPISales receipt(MTD）'!A:A,'個人KPISales receipt(MTD）'!A8,'個人KPISales receipt(MTD）'!B:B,'個人KPISales receipt(MTD）'!B4,'個人KPISales receipt(MTD）'!C:C,'個人KPISales receipt(MTD）'!C4)","v":0},{"$f":"SUMIFS('個人KPISales receipt(MTD）'!K:K,'個人KPISales receipt(MTD）'!A:A,'個人KPISales receipt(MTD）'!A8,'個人KPISales receipt(MTD）'!B:B,'個人KPISales receipt(MTD）'!B4,'個人KPISales receipt(MTD）'!C:C,'個人KPISales receipt(MTD）'!C4)","v":0},{"$nulls":4},"羽絨服",5,10524]
[null,"鞋",{"$f":"SUMIFS('個人KPISales receipt(MTD）'!J:J,'個人KPISales receipt(MTD）'!A:A,'個人KPISales receipt(MTD）'!A8,'個人KPISales receipt(MTD）'!B:B,'個人KPISales receipt(MTD）'!B6)","v":0},{"$f":"SUMIFS('個人KPISales receipt(MTD）'!K:K,'個人KPISales receipt(MTD）'!A:A,'個人KPISales receipt(MTD）'!A8,'個人KPISales receipt(MTD）'!B:B,'個人KPISales receipt(MTD）'!B6)","v":0},-3,{"$nulls":3},"鞋",3,1168]

{"sheet":"Sales receipt((當天)","index":2,"n_rows":96,"n_cols":14,"rows_kept":96}
["營業員","大類","中類","商品名稱","季節","系列","子系列","性別","上市日期","銷售數量","結算金額","銷售日期","注冊時間","回流判斷"]
["M0989 Susanna","广宣用品","內衣類","DOWN JKT","冬季","ATHLETICS","A.P.","FEMALE",{"$nulls":5},"回流"]
["M2172 Janet","其它","內搭","PAD JKT","春季","FASHION","BLUE","MALE",{"$nulls":5},"新注册"]
["M2518 Silver","服装","羽絨服","PAD VEST","秋季","LIFESTYLE","EXPLORE","UNISEX",{"$nulls":5},"(空白)"]
["M1436 Khaki","配件","針織上衣","SKIRT","夏季","(空白)","FILA MILANO","(空白)"]
["M2798 Ryan","鞋类","針織褲","SWEAT","常青",null,"FILA ORIGINALE"]
["M2801 Fanny","(空白)","梭織上衣","WOVEN JKT","(空白)",null,"FITNESS"]
["M2902 Carmen",null,"梭織褲","WOVEN PANTS",null,null,"GOLF"]
[null,null,"棉服","上衣两件套",null,null,"HERITAGE"]
[null,null,"短T類","中长款羽绒服",null,null,"ICONA"]
[null,null,"滑雪服","长款羽绒服",null,null,"MODERN HERITAGE"]
[null,null,"裙裝","休闲西装",null,null,"MODERNO"]
[null,null,"編織衫","冲锋衣",null,null,"ORIGINALE"]
[null,null,"襯衫","冲锋衣两件套",null,null,"SKI"]
[{"$nulls":3},"羽绒马甲",null,null,"SPORT PERFORMANCE"]
[{"$nulls":3},"羽绒服",null,null,"TENNIS"]
[{"$nulls":3},"羽绒服两件套",null,null,"WHITE"]
[{"$nulls":3},"男装上衣",null,null,"(空白)"]
[{"$nulls":3},"针织马甲"]
[{"$nulls":3},"针织打底裤"]
[{"$nulls":3},"针织长袖POLO衫"]
[{"$nulls":3},"针织长袖上衣"]
[{"$nulls":3},"针织长袖外套"]
[{"$nulls":3},"针织长袖衫"]
[{"$nulls":3},"针织长裤"]
[{"$nulls":3},"针织连帽上衣"]
[{"$nulls":3},"针织连帽外套"]
[{"$nulls":3},"针织背心"]
[{"$nulls":3},"针织套头衫"]
[{"$nulls":3},"针织短袖POLO衫"]
[{"$nulls":3},"针织短袖连帽上衣"]
[{"$nulls":3},"针织短袖衫"]
[{"$nulls":3},"针织裙"]
[{"$nulls":3},"呢子外套"]
[{"$nulls":3},"连衣裙"]
[{"$nulls":3},"轻薄羽绒服"]
[{"$nulls":3},"梭织九分裤"]
[{"$nulls":3},"梭织马甲"]
[{"$nulls":3},"梭织五分裤"]
[{"$nulls":3},"梭织外套"]
[{"$nulls":3},"梭织长袖衬衫"]
[{"$nulls":3},"梭织长裤"]
[{"$nulls":3},"梭织裙"]
[{"$nulls":3},"棉马甲"]
[{"$nulls":3},"棉服"]
[{"$nulls":3},"短裙（含短裤）"]
[{"$nulls":3},"编织外套"]
[{"$nulls":3},"编织连衣裙"]
[{"$nulls":3},"编织衫"]
[{"$nulls":3},"编织衫两件套"]
[{"$nulls":3},"滑雪服"]
{"$rows_empty":44}
["                                            請把要分析的小票複製在以下"]

{"sheet":"個人KPISales receipt(MTD）","index":3,"n_rows":3802,"n_cols":14,"rows_kept":3802}
["營業員","大類","中類","商品名稱","季節","系列","子系列","性別","上市日期","銷售數量","結算金額","銷售日期","注冊時間","回流判斷"]
["M0989 Susanna","广宣用品","內搭","DOWN JKT","冬季","ATHLETICS","A.P.","FEMALE",{"$nulls":5},"回流"]
["M2172 Janet","其它","內衣類","PAD JKT","春季","FASHION","BLUE","MALE",{"$nulls":5},"新注册"]
[null,"服装","羽絨服","PAD VEST","秋季","LIFESTYLE","EXPLORE","UNISEX",{"$nulls":5},"(空白)"]
["M1436 Khaki","配件","針織上衣","SKIRT","夏季","(空白)","FILA MILANO","(空白)"]
["M2798 Ryan","鞋类","針織褲","SWEAT","常青",null,"FILA ORIGINALE"]
["M2801 Fanny","(空白)","梭織上衣","WOVEN JKT","(空白)",null,"FITNESS"]
["M2902 Carmen",null,"梭織褲","WOVEN PANTS",null,null,"GOLF"]
[null,null,"棉服","上衣两件套",null,null,"HERITAGE"]
[null,null,"短T類","中长款羽绒服",null,null,"ICONA"]
[null,null,"滑雪服","长款羽绒服",null,null,"MODERN HERITAGE"]
[null,null,"裙裝","休闲西装",null,null,"MODERNO"]
[null,null,"編織衫","冲锋衣",null,null,"ORIGINALE"]
[null,null,"襯衫","冲锋衣两件套",null,null,"SKI"]
[{"$nulls":3},"羽绒马甲",null,null,"SPORT PERFORMANCE"]
[{"$nulls":3},"羽绒服",null,null,"TENNIS"]
[{"$nulls":3},"羽绒服两件套",null,null,"WHITE"]
[{"$nulls":3},"男装上衣",null,null,"(空白)"]
[{"$nulls":3},"针织马甲"]
[{"$nulls":3},"针织打底裤"]
[{"$nulls":3},"针织长袖POLO衫"]
[{"$nulls":3},"针织长袖上衣"]
[{"$nulls":3},"针织长袖外套"]
[{"$nulls":3},"针织长袖衫"]
[{"$nulls":3},"针织长裤"]
[{"$nulls":3},"针织连帽上衣"]
[{"$nulls":3},"针织连帽外套"]
[{"$nulls":3},"针织背心"]
[{"$nulls":3},"针织套头衫"]
[{"$nulls":3},"针织短袖POLO衫"]
[{"$nulls":3},"针织短袖连帽上衣"]
[{"$nulls":3},"针织短袖衫"]
[{"$nulls":3},"针织裙"]
[{"$nulls":3},"呢子外套"]
[{"$nulls":3},"连衣裙"]
[{"$nulls":3},"轻薄羽绒服"]
[{"$nulls":3},"梭织九分裤"]
[{"$nulls":3},"梭织马甲"]
[{"$nulls":3},"梭织五分裤"]
[{"$nulls":3},"梭织外套"]
[{"$nulls":3},"梭织长袖衬衫"]
[{"$nulls":3},"梭织长裤"]
[{"$nulls":3},"梭织裙"]
[{"$nulls":3},"棉马甲"]
[{"$nulls":3},"棉服"]
[{"$nulls":3},"短裙（含短裤）"]
[{"$nulls":3},"编织外套"]
[{"$nulls":3},"编织连衣裙"]
[{"$nulls":3},"编织衫"]
[{"$nulls":3},"编织衫两件套"]
[{"$nulls":3},"滑雪服"]
{"$rows_empty":44}
["                                            請把要分析的小票複製在以下"]
{"$rows_empty":3705}
["M2801 Fanny","其它","其它","PLASTIC BAG","春季",null,null,"UNISEX",null,3,3,"2025-08-31","通用"]